Cogmind - Beta 16.1 @@@ ROGUE MODE // 2026.03.04 @ 20:10:19 Player: the Result: Destroyed 0b10! Performance ------------- Evolutions (9) 4500 Regions Visited (26) 5200 Robots Destroyed (714) 3570 Value Destroyed (37380) 37380 Prototype IDs (104) 2080 Alien Tech Used (7) 1400 Bonus (38884) 38884 TOTAL SCORE: 93014 Bonus ------- Triggered High Security 1500 High Alert Combat Kills 15824 Follower Combat Kills 1349 Hunted by Unchained 500 Network Hubs Disabled 400 Met Data Miner 300 Met R17 at Cetus 500 Found Hidden Lab 3000 Used Core Reset Matrix 3000 Hacked Protovariant 1000 Met R17 at Research 2000 Scanned by Researcher 1000 Pursued by Intercept 500 Met Sigix 2000 Escaped with Sigix 5000 Win 3000 Friendly Fire -1989 Cogmind --------- Core Integrity 665/1600 Matter 10/300 Energy 489/685 System Corruption 0% +Membrane Temperature Cool (8) Movement Hovering (65) Location Tau Ceti IV Orbit Parts ------- > --- POWER (4) -------- Quantum-Particle Reactor > --- PROPULSION (6) --- Hovering Cooled-HC Exoskeleton > --- UTILITY (11) ----- Armored Scrap Engine 2N-1CE's Frost Array Advanced Coolant Injector Advanced Weapon Cycler Layered Heavy Armor Plating Heavy Reflective Plating Advanced Force Field > --- WEAPON (4) ------- Shotgun Accelerated Linear Construct/C > --- INVENTORY (5) ---- Advanced Weapon Cycler Advanced Point Defense System Quantum Router Sigix Containment Pod Peak State ------------ > --- POWER ------------ Quantum-Particle Reactor > --- PROPULSION ------- Hovering Cooled-HC Exoskeleton > --- UTILITY ---------- Armored Scrap Engine 2N-1CE's Frost Array High-capacity Storage Unit Active Sensor Suite Experimental Targeting Computer Advanced Weapon Cycler Heavy Regenerative Plating > --- WEAPON ----------- Shotgun Accelerated Linear Construct/C > --- INVENTORY -------- Advanced Coolant Injector Experimental Coolant Injector Huge Storage Unit Matter Compressor Improved Kinecellerator Advanced Weapon Cycler Advanced Weapon Cycler Experimental Transmission Jammer Advanced Force Field Advanced Point Defense System Ghost Barrier Quantum Router Heavy Disruptor Cannon Heavy Disruptor Cannon Sigix Containment Pod [Rating: 199] Favorites ----------- Power Constructs Engine Ion Engine Power Core Light Nuclear Core Reactor Constructs Propulsion Constructs Treads Light Treads Leg Carbon-fiber Leg Wheel Wheel Hover Unit Constructs Flight Unit Biomechanical Wings Utility Armored Scrap Engine Device Armored Scrap Engine Storage High-capacity Storage Unit Processor Advanced Signal Interpreter Hackware Hacking Suite Protection Scrap Shield Weapon Constructs Energy Gun Subdweller Laser Energy Cannon Heavy Particle Cannon Ballistic Gun Subdweller Machine Gun Ballistic Cannon Constructs Launcher Improved Grenade Launcher Special Weapon Mining Laser Impact Weapon Makeshift Hammer Slashing Weapon Chainsword Build | -11 -10 -10 -8 -8 -8 -6 -6 -6 -6 -5 -5 -5 -5 -5 -5 -4 -4 -4 -4 -4 -3 -3 -2 -2 -2 -1 ------- Run | Yrd Mat Sub Mat Sto Rec Fac Low Low Dat Pro Fac Ext Cet Arc Hub Fac Was Fac Arm Lab Res Tes Res Qua Sec Acc Slots Evolved 18 | . . . 4 . . 4 . . . . 2 . . . . 2 . . . . 2 . 2 . . 2 Power 3 | . . . 1 . . . . . . . 1 . . . . . . . . . . . 1 . . . Propulsion 4 | . . . 2 . . 1 . . . . . . . . . . . . . . 1 . . . . . Utility 9 | . . . 1 . . 2 . . . . 1 . . . . 1 . . . . 1 . 1 . . 2 Weapon 2 | . . . . . . 1 . . . . . . . . . 1 . . . . . . . . . . Parts Attached 247 | 7 12 20 38 28 3 9 6 2 5 4 9 4 1 . 2 1 3 11 9 2 14 19 15 4 7 12 Power 21 | 1 2 2 7 7 . . 1 . . . . . . . . . . . . . . . 1 . . . Engine 17 | 1 2 2 6 5 . . 1 . . . . . . . . . . . . . . . . . . . Core 3 | . . . 1 2 . . . . . . . . . . . . . . . . . . . . . . Reactor 1 | . . . . . . . . . . . . . . . . . . . . . . . 1 . . . Propulsion 28 | 2 . 6 10 7 1 . 1 . . . . . . . . . . . . . . 1 . . . . Treads 12 | 2 . 3 6 . 1 . . . . . . . . . . . . . . . . . . . . . Leg 11 | . . 1 4 5 . . . . . . . . . . . . . . . . . 1 . . . . Wheel 3 | . . 2 . 1 . . . . . . . . . . . . . . . . . . . . . . Hover . | . . . . . . . . . . . . . . . . . . . . . . . . . . . Flight 2 | . . . . 1 . . 1 . . . . . . . . . . . . . . . . . . . Utility 148 | 2 5 4 7 6 1 8 4 2 5 4 9 3 1 . 2 1 1 10 8 1 14 17 12 4 7 10 Device 95 | 1 2 1 2 3 1 5 1 1 2 4 7 3 . . 2 1 . 6 8 1 8 14 9 3 2 8 Storage 14 | 1 2 1 1 1 . 1 1 1 1 . . . . . . . . 2 . . 1 . . . 1 . Processor 17 | . . . 1 1 . 1 1 . . . 1 . . . . . . 2 . . 2 2 1 1 4 . Hackware 8 | . . . 3 . . 1 . . . . 1 . . . . . . . . . 3 . . . . . Protection 14 | . 1 2 . 1 . . 1 . 2 . . . 1 . . . 1 . . . . 1 2 . . 2 Artifact . | . . . . . . . . . . . . . . . . . . . . . . . . . . . Weapon 50 | 2 5 8 14 8 1 1 . . . . . 1 . . . . 2 1 1 1 . 1 2 . . 2 Energy Gun 15 | . . 2 6 2 . 1 . . . . . . . . . . . . . 1 . . 2 . . 1 Energy Cannon 10 | . 3 1 2 1 . . . . . . . . . . . . . 1 1 . . . . . . 1 Ballistic Gun 15 | 2 . 4 4 3 . . . . . . . . . . . . 1 . . . . 1 . . . . Ballistic Cannon 4 | . . . 2 . . . . . . . . 1 . . . . 1 . . . . . . . . . Launcher 3 | . 1 . . 2 . . . . . . . . . . . . . . . . . . . . . . Special Weapon 1 | . 1 . . . . . . . . . . . . . . . . . . . . . . . . . Impact Weapon 1 | . . 1 . . . . . . . . . . . . . . . . . . . . . . . . Slashing Weapon 1 | . . . . . 1 . . . . . . . . . . . . . . . . . . . . . Piercing Weapon . | . . . . . . . . . . . . . . . . . . . . . . . . . . . Special Melee Weapon . | . . . . . . . . . . . . . . . . . . . . . . . . . . . Unidentified Prototypes 47 | . . . 4 5 1 1 1 . 2 . . . 1 . 1 . . . . 3 4 9 5 4 4 2 Corrupted Parts 2 | . . . 1 . . . . . . 1 . . . . . . . . . . . . . . . . System Corruption 11 | . . . 6 . . . . . . 5 . . . . . . . . . . . . . . . . Parts Lost 32 | . . 3 5 4 . 1 3 . 1 . . 2 . . 1 . . . . . . . 1 . 3 8 Power 5 | . . 1 1 . . 1 1 . . . . . . . . . . . . . . . . . . 1 Propulsion 6 | . . 1 3 1 . . . . . . . . . . . . . . . . . . . . . 1 Utility 20 | . . 1 1 3 . . 2 . 1 . . 2 . . 1 . . . . . . . 1 . 2 6 Weapon 1 | . . . . . . . . . . . . . . . . . . . . . . . . . 1 . Highest Loss Streak 6 | . . 1 2 2 . 1 2 . 1 . . 1 . . 1 . . . . . . . 1 . 1 6 To Critical Strikes 1 | . . . . . . . . . . . . . . . . . . . . . . . . . . 1 Average Backups 15 | 3 10 8 18 19 13 14 14 14 14 14 19 18 19 20 20 18 18 17 18 19 18 22 23 17 16 10 Power . | . . . . 1 . . . . . . 1 3 3 4 4 2 2 . . . . . . . . . Propulsion 1 | . 1 1 4 7 3 1 . . . . . . . . . . . . . 1 . . . . . . Utility 9 | 1 5 2 2 1 2 9 11 11 11 12 14 15 15 14 14 14 14 15 16 16 16 20 18 15 13 8 Weapon 3 | 1 2 3 10 9 5 3 2 2 3 2 2 . . 2 2 1 . 1 1 . . . 2 . . 1 Tool/Special . | . . . . . . . . . . . . . . . . . . . . . . . . . . . Unused Backups 131 | 1 4 4 8 4 17 10 5 . 5 2 12 8 1 . 1 3 1 15 8 3 2 1 4 2 3 7 Power 10 | . 1 1 . . 1 . . . . . 1 . 1 . . 2 . 3 . . . . . . . . Propulsion 17 | . . . 2 1 5 . 4 . . . 2 . . . . . . 1 . 2 . . . . . . Utility 34 | 1 2 2 2 1 . 1 . . 4 1 1 2 . . 1 . . 6 1 . 2 . 2 1 . 4 Weapon 69 | . 1 1 4 2 11 9 1 . 1 1 8 6 . . . 1 1 5 7 1 . 1 2 1 2 3 Tool/Special 1 | . . . . . . . . . . . . . . . . . . . . . . . . . 1 . Average Slot Usage (%) 63 | . 99 89 95 90 60 45 44 44 46 45 46 46 47 47 46 36 37 46 47 46 46 47 45 46 46 37 Engine 6 | . 14 13 14 13 7 5 6 2 . . . . . . . . . . . . . . . . . . Core 1 | . . . 1 1 4 . . 3 6 6 2 5 3 4 5 2 . . 1 . . . . . . . Reactor 1 | . . . . . . . . . . . 2 . 1 . . 2 5 4 3 5 4 4 4 4 4 4 Treads 8 | . 27 22 23 2 . . . . 6 . 3 . . . . . . . . . 1 . . . . . Leg 3 | . . . 6 20 12 2 . 5 . 5 1 5 5 4 5 5 5 3 . . . 3 . 2 4 . Device 14 | . 13 3 16 11 9 13 13 13 13 18 16 17 21 23 22 15 15 15 19 20 14 18 21 24 20 16 Storage 6 | . 14 4 8 7 9 6 6 6 6 6 5 5 5 5 5 5 5 5 5 5 4 4 4 4 4 2 Processor 1 | . . . . . . 5 2 3 . . . . . . . . . 3 5 5 4 4 4 5 8 3 Hackware 1 | . . . 6 12 . . . . . . 4 4 . . . . . . . . 8 4 1 . . . Protection 2 | . . 9 . 1 2 . . 1 4 . . . 1 . . . . 4 1 . . . . . . 3 Energy Gun 1 | . . 4 4 . 1 . . . . . . . . . . . . . . . . . . . . . Energy Cannon 5 | . 19 6 6 14 6 4 . . 6 4 2 . . . . . . 1 2 5 1 1 4 2 2 2 Ballistic Gun 2 | . 5 12 . . . . . . . . . . . . . . . . . . . . . . . . Ballistic Cannon 2 | . . . 3 . 2 1 6 5 . 1 2 4 5 5 5 5 5 3 2 . 2 2 . 2 1 1 Peak Build Rating 199 | 7 8 19 50 53 49 71 72 63 71 92 109 110 117 130 131 130 136 148 143 149 168 182 190 180 178 199 Average Rating 76 | 5 7 13 35 47 42 61 63 60 64 86 102 104 113 129 129 123 130 139 135 138 162 169 175 176 173 174 On Entrance 97 | . 7 8 16 50 40 49 69 61 61 71 90 103 108 117 130 124 124 136 136 135 140 166 168 176 175 163 Avg Prop Armor Cover (%) 6 | . . 4 7 17 . . . . . . . . . . . . . . . . . . . . . . Naked Turns . | . . . . . . . . . . . . . . . . . . . . . . . . . . . Heaviest Build 208 | 14 32 57 66 75 71 64 68 45 48 73 94 113 113 105 102 101 113 114 128 106 187 208 189 146 134 167 Greatest Support 260 | 40 40 40 92 85 68 72 72 87 70 120 175 115 115 136 136 136 136 136 128 128 205 217 191 206 260 260 Greatest Overweight (x) 7 | . . 3 1 7 1 . 2 . . 1 . . . . . . . . . . 1 1 1 . . . Average Overweight (x) . | . . 1 . 1 . . . . . . . . . . . . . . . . . . . . . . Largest Inventory Capacity 25 | 8 15 20 20 20 20 20 20 15 15 20 20 20 20 20 20 20 20 25 20 20 25 25 25 20 20 20 Average Capacity 17 | 7 11 9 20 20 20 20 17 15 15 16 20 20 20 20 20 20 20 20 20 20 21 25 24 20 20 15 Most Carried 25 | 6 13 19 20 20 20 20 20 15 15 17 20 20 20 20 20 19 20 20 20 20 21 25 25 20 20 20 Average Carried 15 | 3 10 8 18 19 13 14 14 14 14 14 19 18 19 20 20 18 19 18 18 19 19 23 24 19 19 13 Final Capacity 25 | 8 15 20 20 20 20 20 15 15 15 20 20 20 20 20 20 20 20 20 20 20 25 25 20 20 20 5 Final Carried 24 | 5 13 19 20 20 7 20 14 15 15 17 19 18 20 20 20 18 18 16 19 20 20 24 20 20 16 5 Scrap Engine Consumption 416 | . . . . . 50 49 22 21 5 22 30 24 8 . 2 3 8 24 23 5 17 25 22 12 21 23 Constructs Created 4 | . . . . . 3 . . . . . 1 . . . . . . . . . . . . . . . Constructs Modified 178 | . . . . . 19 18 13 7 1 6 18 8 2 5 . 2 3 10 10 2 9 12 9 3 10 11 Class Distribution -------------------- 36% | Construct 17% | Mutant 10% | Subdweller-Mutant 9% | Commander-Construct 7% | Hacker-Construct 6% | Generator-Construct 6% | Hacker-Mutant Dominant Class ---------------- Mutant | -10/Materials Subdweller-Mutant | -10/Subcaves Hacker-Mutant | -8/Materials Hacker-Mutant | -8/Storage Construct | -8/Recycling Construct | -6/Factory Construct | -6/Lower Caves Commander-Construct | -6/Lower Caves Construct | -6/Data Miner Construct | -5/Proximity Caves Construct | -5/Factory Commander-Construct | -5/Extension Construct | -5/Cetus Construct | -5/Archives Construct | -5/Hub_04(d) Construct | -4/Factory Construct | -4/Waste Construct | -4/Factory Construct | -4/Armory Commander-Construct | -4/Lab Hacker-Construct | -3/Research Hacker-Construct | -3/Testing Generator-Construct | -2/Research Generator-Construct | -2/Quarantine Generator-Construct | -2/Section 7 Generator-Construct | -1/Access Resources | -11 -10 -10 -8 -8 -8 -6 -6 -6 -6 -5 -5 -5 -5 -5 -5 -4 -4 -4 -4 -4 -3 -3 -2 -2 -2 -1 ----------- Run | Yrd Mat Sub Mat Sto Rec Fac Low Low Dat Pro Fac Ext Cet Arc Hub Fac Was Fac Arm Lab Res Tes Res Qua Sec Acc Matter Collected 13910 | 384 487 600 949 769 189 1468 671 446 441 1079 311 318 230 50 308 . 388 1262 600 . 393 616 266 129 332 1224 Remotely . | . . . . . . . . . . . . . . . . . . . . . . . . . . . Salvage Created 49561 | 237 816 657 1709 1985 530 2038 974 761 443 1929 1911 1649 685 370 1433 . 2063 1482 1828 . 1693 2573 3761 2383 9149 6502 Parts 2134 | 25 52 44 99 118 30 78 44 22 15 72 106 58 32 15 59 . 54 72 93 . 51 128 182 117 294 274 Haulers Intercepted 43 | . 2 . 6 6 . 3 . . . . 4 3 . . 3 . . . . . 7 2 2 . 4 1 Recyclers Shooed 10 | 1 1 . 1 2 . 1 . 1 . . . . . . . . . 1 . . . . 1 . . 1 Parts Field Recycled . | . . . . . . . . . . . . . . . . . . . . . . . . . . . Retrieved Matter . | . . . . . . . . . . . . . . . . . . . . . . . . . . . Parts Self-Destructed 58 | . . 5 . . . . 29 18 . 6 . . . . . . . . . . . . . . . . Prevented 59 | . . . . . . . . 1 . 58 . . . . . . . . . . . . . . . . Parts Restored . | . . . . . . . . . . . . . . . . . . . . . . . . . . . Kills | -11 -10 -10 -8 -8 -8 -6 -6 -6 -6 -5 -5 -5 -5 -5 -5 -4 -4 -4 -4 -4 -3 -3 -2 -2 -2 -1 ------- Run | Yrd Mat Sub Mat Sto Rec Fac Low Low Dat Pro Fac Ext Cet Arc Hub Fac Was Fac Arm Lab Res Tes Res Qua Sec Acc Combat Hostiles Destroyed 525 | . 16 15 29 32 7 24 16 4 4 21 23 12 8 4 11 . 6 21 22 . 12 26 34 23 80 75 Guns 25 | . 2 8 12 2 1 . . . . . . . . . . . . . . . . . . . . . Cannons 428 | . 5 7 14 18 6 16 13 4 2 11 19 12 8 4 10 . 6 17 21 . 9 26 34 23 68 75 AOE 41 | . 9 . 2 12 . 7 3 . . . 4 . . . . . . 3 . . . . . . 1 . Classes Destroyed 36 | 3 6 2 1 3 1 1 1 3 . 2 . . . . . . 1 1 1 . 1 2 1 . 5 1 Worker 21 | 2 2 . 1 . . . . . . . 4 1 . . 2 . . 2 . . 1 1 2 1 2 . Builder 17 | . 1 . 2 2 . 2 . . . . 1 4 . . 1 . . . . . 1 . . . 2 1 Tunneler 11 | 8 1 . . . . . . . . . . 1 . . . . . . . . . . . . . 1 Hauler 43 | . 2 . 6 6 . 3 . . . . 4 3 . . 3 . . . . . 7 2 2 . 4 1 Recycler 21 | 1 3 . 2 4 . 5 . . . . . 2 . . 1 . . . . . . . 2 . . 1 Carrier 4 | . . . . . . . . . . . . . . . . . . . . . . . . . 4 . Minesweeper 1 | . . . . . . . . 1 . . . . . . . . . . . . . . . . . . Mechanic 11 | . . . . . . . . . . 1 1 . . . . . . . 1 . . . 2 . 6 . Operator 10 | . 1 . 1 . . 1 . . . . . . . . 1 . . . . . 1 1 1 1 2 . Drone 5 | . . . . . . . . . . . . . . . . . . . . . . . . . . 5 Watcher 36 | . 2 . 3 2 . 2 . . . . 1 . 2 . 2 . . 1 1 . 1 3 7 2 3 4 Swarmer 70 | . 6 1 7 2 . 10 4 . . . 5 . . . . . . 1 . . 3 . 8 . 4 19 Saboteur 1 | . . . . . . . . . . . . . . . . . . . . . . . . . 1 . Grunt 168 | . 10 . 12 15 . 10 3 5 . 8 10 5 . . 3 . . 3 2 . 3 10 14 9 21 25 Brawler 18 | . . . . 1 . . 4 . . 3 . 2 . . . . . . . . . . . 1 5 2 Duelist 29 | . . . . 1 . 1 3 . . 8 . . . . . . . . 6 . . 1 . 1 5 3 Protector 14 | . . . . 2 . . . . . . . . . . 1 . . . 1 . . 2 . 2 5 1 Researcher 8 | . . . . . . . . . . . . . . . . . . . . . . 1 . 1 6 . Sentry 65 | . . 1 8 11 1 1 1 . . 2 1 2 . 4 3 . . 4 3 . 1 3 1 3 7 8 Demolisher 5 | . . . . . 1 . . . . . . 1 . . . . . 2 1 . . . . . . . Specialist 8 | . . . . . . . . . . . . . . . . . . . 2 . . 3 . 3 . . Hunter 34 | . . . 2 . . . . . . . 3 1 . . 2 . . 4 2 . 2 2 2 . 8 6 Programmer 38 | . . . . . . 2 . . . . 4 . . . 2 . . 4 4 . 1 4 6 1 10 . Heavy 2 | . . . . . . . . . . . . . . . . . . . . . . . 1 . . 1 Q-Series 4 | . . . . . . . . . . . . . . . . . . . . . . 1 1 . . 2 Behemoth 9 | . . . . . . . . . . 1 . . . . . . . . 1 . 1 . 1 . 2 3 Compactor 6 | . . . . . . . . . . . . . . . . . 6 . . . . . . . . . Cetus Guard 8 | . . . . . . . . . . . . . 8 . . . . . . . . . . . . . S7 Guard 2 | . . . . . . . . . . . . . . . . . . . . . . . . . 2 . Enhanced Grunt 4 | . . . . . . . . . 4 . . . . . . . . . . . . . . . . . Lightning 3 | . . . . . . . . . . . . . . . . . . . . . . . . 3 . . Tracker 2 | . . . . . . . . . . . . . . . . . . . . . . . . . 2 . Combat Programmer 2 | . . . . . . . . . . . . . . . . . . . . . . . . . 2 . Investigator 3 | . . . . . . . . . . . . . . . . . . . . . . 2 . . . 1 Striker 2 | . . . . . . . . . . . . . . . . . . . . . . . . . 2 . Executioner 2 | . . . . . . . . . . . . . . . . . . . . . . . . . 2 . Alpha 7 2 | . . . . . . . . . . . . . . . . . . . . . . . . . 2 . Subdweller 18 | . . 13 . . 5 . . . . . . . . . . . . . . . . . . . . . Packrat 3 | . . . . . . . . 3 . . . . . . . . . . . . . . . . . . Samaritan 2 | . . . . . . . . 2 . . . . . . . . . . . . . . . . . . Tinkerer 1 | . . . . . . . . 1 . . . . . . . . . . . . . . . . . . Assembled 3 | . . . . . . . . . . . . . . . . . . 3 . . . . . . . . Surgeon 2 | . . . . . . . . . . . . . . . . . 1 1 . . . . . . . . Wasp 1 | . . . . . . . . . . . . . . . . . 1 . . . . . . . . . Thug 2 | . . . . . . . . . . . . 1 . . . . 1 . . . . . . . . . Butcher 2 | . . . . . . . . . . . . 2 . . . . . . . . . . . . . . Martyr 2 | . . . . . . . . . . . . . . . . . 2 . . . . . . . . . Mutant 1 | . . . . . . . 1 . . . . . . . . . . . . . . . . . . . Revision 1 | . . . . . . . . . . . . . . . . . . . . . 1 . . . . . Best Kill Streak 60 | 5 3 2 8 10 2 11 9 4 2 9 8 8 5 4 10 . 5 8 7 . 9 6 11 12 60 45 Combat Bots Only 51 | . 3 2 7 10 2 7 9 4 2 9 5 5 4 4 5 . 5 8 7 . 4 5 9 12 51 42 Max Kills in Single Turn 6 | 1 2 2 2 4 1 2 2 1 1 2 6 2 1 1 2 . 2 2 1 . 1 2 3 2 4 2 Gunslinging 1 | . . 1 . . . . . . . . . . . . . . . . . . . . . . . . Exploded 4 | . 2 . 1 4 . 2 2 . . . 4 . . . . . . 2 . . . . . . 1 . Melee . | . . . . . . . . . . . . . . . . . . . . . . . . . . . Uniques/NPCs Destroyed 1 | . . . . . . . . . 1 . . . . . . . . . . . . . . . . . Data Miner (-6/Data Miner) Combat | -11 -10 -10 -8 -8 -8 -6 -6 -6 -6 -5 -5 -5 -5 -5 -5 -4 -4 -4 -4 -4 -3 -3 -2 -2 -2 -1 -------- Run | Yrd Mat Sub Mat Sto Rec Fac Low Low Dat Pro Fac Ext Cet Arc Hub Fac Was Fac Arm Lab Res Tes Res Qua Sec Acc Hostile Shots Fired 2399 | . 40 58 163 99 12 119 37 25 13 37 136 37 47 4 45 . . 98 136 . 76 209 68 56 236 648 Missed 819 | . 8 13 49 27 4 41 8 9 4 13 56 12 16 2 13 . . 26 40 . 29 93 38 19 79 220 Intercepted 13 | . . . . . . . . . . . . . . . . . . . 3 . . 10 . . . . Hits 1580 | . 32 45 114 72 8 78 29 16 9 24 80 25 31 2 32 . . 72 96 . 47 116 30 37 157 428 Melee 9 | . . . . . . 1 5 . . 1 . . . . . . . . 2 . . . . . . . Projectile 1571 | . 32 45 114 72 8 77 24 16 9 23 80 25 31 2 32 . . 72 94 . 47 116 30 37 157 428 AOE 15 | . . . . 1 . . 1 . . . . 3 . . 1 . . 1 . . . 7 . . . 1 Critical Strikes 90 | . . 1 5 5 . 1 1 1 . 2 3 5 5 . 6 . . 1 6 . 1 3 1 2 10 31 Part Disruptions 1 | . . . . . . . . . . . . . . . . . . . 1 . . . . . . . Damage Taken 27567 | . 438 998 1626 1194 154 1562 546 246 400 540 1383 652 497 28 1087 . . 1362 1593 . 676 1688 373 679 3400 6445 Core 1788 | . 56 60 175 107 21 104 47 29 . 78 139 13 26 . 16 . . 124 78 . 22 15 35 . 71 572 Absorbed by Shields 6895 | . . . . . . . 87 . . . 104 85 319 27 441 . . 413 284 . 416 903 319 286 413 2798 Ignored by Resistances 289 | . . . . . . . 6 39 31 . . . . . . . . . . . . . 60 . . 153 Regen/Repaired (Parts) 15898 | . 91 . . 51 14 750 177 319 42 290 1163 349 188 714 . 245 264 1251 854 43 1011 1283 578 451 1930 3840 Core Remaining (%) 74 | 100 . 53 . . 44 . . . . 69 . . . . 80 . . . . 100 . 97 . . 85 41 Volleys Fired 1831 | 33 73 64 118 78 16 117 34 29 18 51 76 59 42 10 53 . 42 88 131 17 65 111 74 57 165 210 Largest 2 | 2 2 2 2 2 2 1 2 1 1 1 1 1 1 1 1 . 1 1 1 1 1 1 1 1 1 1 Hottest 344 | 40 120 120 150 150 150 189 98 81 81 144 144 129 129 129 129 . 124 124 344 121 91 132 104 104 143 210 Shots Fired 2156 | 66 121 117 232 148 26 116 34 29 18 51 76 59 42 10 53 . 42 88 131 16 65 111 74 57 164 210 Gun 296 | 66 34 64 102 28 2 . . . . . . . . . . . . . . . . . . . . . Cannon 1811 | . 62 46 130 113 24 109 31 29 18 51 76 59 42 10 53 . 42 88 131 16 65 111 74 57 164 210 Launcher 25 | . 8 . . 7 . 7 3 . . . . . . . . . . . . . . . . . . . Special 24 | . 17 7 . . . . . . . . . . . . . . . . . . . . . . . . Kinetic 1239 | 66 34 40 76 28 2 37 31 24 . . 45 53 42 10 53 . 42 71 66 . 17 69 74 57 95 207 Thermal 636 | . 79 77 87 113 24 45 . 5 18 7 31 5 . . . . . 17 61 12 13 42 . . . . Explosive 25 | . 8 . . 7 . 7 3 . . . . . . . . . . . . . . . . . . . Electromagnetic 256 | . . . 69 . . 27 . . . 44 . 1 . . . . . . 4 4 35 . . . 69 3 Robot Hit Streak 27 | 9 10 18 12 15 12 10 11 9 17 14 13 10 6 4 8 . 14 7 9 . 9 9 9 13 27 17 Robot Miss Streak 10 | 2 3 3 4 6 1 4 4 5 4 5 6 3 3 2 2 . 3 8 3 . 4 6 10 7 7 4 Penetration Max 2 | . . . . . . 2 . . . . . 1 1 . 1 . 1 . 1 . . 1 1 1 2 2 Secondary Targets 3 | . . 2 1 . . . . . . . . . . . . . . . . . . . . . . . Max Gunslinging Chain 1 | . . 1 1 . . . . . . . . . . . . . . . . . . . . . . . Shots Hit Robots 1429 | 45 61 73 128 88 22 53 29 25 18 51 59 42 25 6 31 . 31 42 66 . 39 57 63 45 148 182 Core Hits 1090 | 15 39 25 69 70 11 36 40 30 32 55 50 20 12 4 14 . 10 24 24 . 15 30 73 58 221 113 Critical Kills 96 | 1 1 2 . . . 1 . 1 1 . . . . . 3 . 1 1 1 . . 4 21 8 17 33 Critical Parts Destroyed 168 | . . . . . . 1 1 2 . . . . . . 3 . . . . . . 11 25 16 53 56 Critical Strikes 321 | 1 1 2 5 . . 2 1 3 1 . . . . . 6 . 3 3 3 . . 16 47 28 83 116 Burn 1 | . . . 1 . . . . . . . . . . . . . . . . . . . . . . . Meltdown 3 | . 1 . . . . . . . . . . . . . . . . 1 1 . . . . . . . Destroy 303 | 1 . 2 . . . 2 1 3 1 . . . . . 6 . 3 . . . . 16 47 28 83 110 Blast 14 | . . . 4 . . . . . . . . . . . . . . 2 2 . . . . . . 6 Melee Attacks 40 | . . 7 2 . 5 . . . 26 . . . . . . . . . . . . . . . . . Impact 9 | . . 7 2 . . . . . . . . . . . . . . . . . . . . . . . Slashing 31 | . . . . . 5 . . . 26 . . . . . . . . . . . . . . . . . Piercing . | . . . . . . . . . . . . . . . . . . . . . . . . . . . Sneak Attacks . | . . . . . . . . . . . . . . . . . . . . . . . . . . . Combat Hostiles . | . . . . . . . . . . . . . . . . . . . . . . . . . . . Follow-up Attacks . | . . . . . . . . . . . . . . . . . . . . . . . . . . . Damage Inflicted 132325 | 485 1476 1398 3057 3541 753 4491 1915 1289 725 2771 4773 6063 3599 673 4837 . 3928 4968 7439 . 4873 9376 8141 6377 26611 18766 Guns 3056 | 485 240 786 1296 205 44 . . . . . . . . . . . . . . . . . . . . . Cannons 122793 | . 630 612 1250 1875 397 3729 1646 1272 725 2771 4105 6015 3599 673 4725 . 3928 4026 7439 . 4579 9286 8055 6334 26381 18741 Explosions 5751 | . 590 . 485 1424 . 756 269 . . . 639 . . . 112 . . 868 . . 249 . 86 43 230 . Melee 312 | . . . . . 312 . . . . . . . . . . . . . . . . . . . . . Ramming 413 | . 16 . 26 37 . 6 . 17 . . 29 48 . . . . . 74 . . 45 90 . . . 25 Kinetic 91917 | 485 240 418 901 205 47 1465 1646 1020 . . 2550 5726 3599 673 4725 . 3928 3058 4202 . 996 6091 8055 6334 17139 18414 Thermal 18865 | . 630 980 1175 1875 394 1514 . 252 725 295 2194 156 . . . . . 968 2882 . 1630 3195 . . . . Explosive 4144 | . 590 . . 1424 . 634 269 . . . . . . . . . . 868 . . . . 86 43 230 . Electromagnetic 16674 | . . . 955 . . 872 . . . 2476 . 133 . . 112 . . . 355 . 2202 . . . 9242 327 Impact . | . . . . . . . . . . . . . . . . . . . . . . . . . . . Slashing 312 | . . . . . 312 . . . . . . . . . . . . . . . . . . . . . Piercing . | . . . . . . . . . . . . . . . . . . . . . . . . . . . Highest Corruption 7 | . 3 3 6 6 6 7 7 7 7 7 . . . . 6 . . 2 3 3 1 3 2 5 5 . Average Corruption 4 | . 2 3 6 6 6 6 7 7 7 6 . . . . 2 . . 1 2 3 1 2 1 4 5 . Corruption Purged 7 | . . . . . . . . . . 6 . . . . . . . . . . 1 . . . . . Corruption Blocked . | . . . . . . . . . . . . . . . . . . . . . . . . . . . Effects 533 | . 16 112 57 49 57 16 48 46 13 42 . . . . 1 . . 9 12 9 4 12 9 3 18 . Message Errors 125 | . 7 21 12 12 13 2 18 10 4 10 . . . . . . . 3 1 1 2 4 2 . 3 . Matter Fused 140 | . 5 31 13 9 16 6 10 12 4 13 . . . . 1 . . 4 3 . . 2 2 1 8 . Heat Flow Errors 57 | . 1 16 9 3 6 2 5 3 3 4 . . . . . . . . 1 . . 1 1 1 1 . Energy Discharges 68 | . 1 15 3 10 7 1 6 6 1 7 . . . . . . . 1 1 4 . 3 1 . 1 . Parts Rejected 3 | . . 1 . . . . . . . . . . . . . . . . 1 . . . . . 1 . Parts Fused 6 | . . 1 . . . . 1 1 . . . . . . . . . 1 . 1 . . . . 1 . Data Loss (minor) 69 | . 2 14 6 5 8 2 4 11 1 5 . . . . . . . . 4 2 . 1 3 . 1 . Data Loss (major) 27 | . . 5 3 5 2 2 3 2 . 3 . . . . . . . . 1 . . . . . 1 . Misfires 10 | . . 3 2 4 1 . . . . . . . . . . . . . . . . . . . . . Alerts 17 | . . 5 3 1 3 . . 1 . . . . . . . . . . . . 2 1 . 1 . . Weapon Failures 11 | . . . 6 . 1 1 1 . . . . . . . . . . . . 1 . . . . 1 . Overload Shots . | . . . . . . . . . . . . . . . . . . . . . . . . . . . Overflow Damage 9911 | . 27 . 169 88 76 513 4 106 . 41 316 939 117 12 967 . 75 592 872 . 522 2011 250 209 1120 885 Projectiles 9075 | . . . 5 11 . 366 4 94 . 41 136 931 117 12 967 . 75 546 872 . 473 1961 250 209 1120 885 Explosions 659 | . 27 . 164 77 . 147 . . . . 180 . . . . . . 45 . . 19 . . . . . Melee 177 | . . . . . 76 . . 12 . . . 8 . . . . . 1 . . 30 50 . . . . Knockbacks 287 | . . . . 1 . 10 8 15 . . 12 9 . . 7 . 1 8 9 . 2 25 28 30 73 49 Impact 3 | . . . . 1 . . . . . . . 1 . . . . . . . . . 1 . . . . Kinetic 253 | . . . . . . 10 8 14 . . 10 8 . . 5 . 1 7 7 . 2 22 28 29 59 43 Secondary 31 | . . . . . . . . 1 . . 2 . . . 2 . . 1 2 . . 2 . 1 14 6 Self-Inflicted Damage 1092 | . 52 . 23 67 . 298 . . . . 113 . . . 96 . . 227 . . 84 . . . 120 12 Shots 18 | . 3 . 1 2 . 4 . . . . 1 . . . 1 . . 2 . . 3 . . . 1 . Rammed 12 | . 3 . 3 1 . . . 1 . . 2 . . . . . . . . . 1 . . . . 1 Targets Rammed 24 | . 3 . 5 5 . 1 . 1 . . 3 1 . . . . . 2 . . 1 1 . . . 1 Kicked 11 | . . . 2 4 . 1 . . . . . 1 . . . . . 2 . . . 1 . . . . Crushed 1 | . . . . . . . . . . . 1 . . . . . . . . . . . . . . . Highest Temperature 534 | . 389 241 532 534 272 381 222 199 173 255 223 337 199 173 199 . 259 369 482 64 226 294 398 160 112 486 Average Temperature 94 | . 95 61 89 137 82 87 77 62 64 97 58 95 122 82 95 . 62 133 146 56 55 62 40 108 47 87 Received Heat Transfer 4177 | . 195 228 648 549 12 354 132 135 . 132 385 144 16 . 29 . . 71 193 . 45 257 46 120 168 318 Effects 36 | . 1 . 5 14 . 1 . . . . 3 3 . . . . . 3 4 . . . 2 . . . Shutdowns 7 | . . . 2 2 . . . . . . . . . . . . . 1 2 . . . . . . . Energy Bleed 9 | . . . 1 3 . 1 . . . . . 2 . . . . . 1 1 . . . . . . . Interference 13 | . . . . 6 . . . . . . 3 1 . . . . . 1 . . . . 2 . . . Matter Decay 2 | . . . . 1 . . . . . . . . . . . . . . 1 . . . . . . . Short Circuit 1 | . . . . 1 . . . . . . . . . . . . . . . . . . . . . . Damage (minor) 3 | . 1 . 1 1 . . . . . . . . . . . . . . . . . . . . . . Damage (major) 1 | . . . 1 . . . . . . . . . . . . . . . . . . . . . . . Siege Activations . | . . . . . . . . . . . . . . . . . . . . . . . . . . . Martial Activations . | . . . . . . . . . . . . . . . . . . . . . . . . . . . Shielding Activations . | . . . . . . . . . . . . . . . . . . . . . . . . . . . Robots Disrupted . | . . . . . . . . . . . . . . . . . . . . . . . . . . . Combat Hostiles . | . . . . . . . . . . . . . . . . . . . . . . . . . . . Robots Corrupted 36 | . . . 1 . . 2 . . . 9 . 1 . . 1 . . 1 . . 6 1 . . 14 . Combat Hostiles 26 | . . . 1 . . 1 . . . 9 . . . . 1 . . . . . 3 . . . 11 . Parts Fried 164 | . . . 9 . . 10 . . . 35 . 4 . . 1 . . 3 6 . 22 1 . . 70 3 Impact Corruptions 14 | . . . . . . . . 1 . . . 1 . . 2 . . 1 1 . 1 3 . . 3 1 Robots Melted 6 | . 1 . . . . . . . 2 1 . . . . . . . 1 1 . . . . . . . Combat Hostiles 5 | . . . . . . . . . 2 1 . . . . . . . 1 1 . . . . . . . Parts Melted 46 | . 2 1 3 3 1 2 . 1 18 5 7 1 . . . . . 1 . . . . . . 1 . Heat Transferred 17026 | . 1332 1745 1547 2775 518 729 . 592 2331 518 1917 148 . . . . . 450 1068 . 542 814 . . . . Parts Sabotaged 2 | . . . . . . . . . . . . . . . . . . . 2 . . . . . . . Parts Stolen . | . . . . . . . . . . . . . . . . . . . . . . . . . . . Parts Stripped . | . . . . . . . . . . . . . . . . . . . . . . . . . . . Power Chain Reactions 8 | . . . 4 . . 1 . . . . . . . . . . . . . . 3 . . . . . Alert | -11 -10 -10 -8 -8 -8 -6 -6 -6 -6 -5 -5 -5 -5 -5 -5 -4 -4 -4 -4 -4 -3 -3 -2 -2 -2 -1 ------- Run | Yrd Mat Sub Mat Sto Rec Fac Low Low Dat Pro Fac Ext Cet Arc Hub Fac Was Fac Arm Lab Res Tes Res Qua Sec Acc Maximum Alert Level 5 | . 1 . 1 1 . 3 . . . . 3 3 2 1 2 1 . 2 2 . 1 2 5 5 5 5 Low Security (%) 48 | 100 77 . 62 56 100 3 . . . . 49 . . 85 78 . 100 8 17 . 30 54 . . . . Level 1 28 | . 22 . 37 43 . 55 . . . . 8 34 . 14 7 100 . 62 75 . 69 27 5 . . . Level 2 11 | . . . . . . 38 . . . . 33 48 100 . 14 . . 29 6 . . 18 26 . . . Level 3 2 | . . . . . . 2 . . . . 8 16 . . . . . . . . . . 14 . . . Level 4 . | . . . . . . . . . . . . . . . . . . . . . . . 10 16 1 . Level 5 3 | . . . . . . . . . . . . . . . . . . . . . . . 42 52 . 32 High Security 5 | . . . . . . . . . . . . . . . . . . . . . . . . 30 98 67 Max Security . | . . . . . . . . . . . . . . . . . . . . . . . . . . . Peak Influence 5535 | 15 248 . 350 355 103 715 . . . . 985 964 642 327 593 285 93 501 418 . 381 586 2053 2811 4786 5535 Initial 2865 | . . . . 65 103 223 . . . . 88 479 532 244 . 285 89 . 242 . . 137 315 1151 1581 2865 Average 484 | 2 111 . 172 189 30 424 . . . . 322 515 587 62 143 270 22 335 252 . 228 225 1163 2289 3482 4289 Influence Increases 23541 | 55 635 40 1039 1100 229 1448 325 212 20 491 1327 1321 200 103 950 . 32 1310 797 . 763 1149 2140 1770 3225 2860 Destroy 0b10 Robot/C 10860 | . 320 40 580 600 60 600 300 160 20 420 480 700 160 80 200 . . 520 420 . 340 540 680 440 1700 1500 Destroy 0b10 Robot/NC 1000 | 55 60 . 75 80 25 65 5 5 . 10 55 75 10 . 55 . . 30 15 . 60 45 80 30 120 45 Destroy Leader 1946 | . 68 . 168 166 . 140 20 10 . 40 98 76 . . 68 . . 124 94 . 78 60 158 54 304 220 Allied During Kill 780 | . . . . 12 11 24 . 37 . 21 5 286 . . . . . 218 50 . 116 . . . . . Successful Hack 420 | . 37 . 8 31 37 42 . . . . 14 . . . 18 . . 20 55 . 53 55 43 7 . . Select Force Hacks 180 | . 60 . 30 . 90 . . . . . . . . . . . . . . . . . . . . . Disable Machine 1890 | . 15 . 45 120 . 165 . . . . 180 45 . 15 180 . . 135 45 . 30 195 105 225 225 165 Anti-Garrison Action 300 | . . . . . . . . . . . . . . . . . . . . . . . . 150 . 150 Destroy Structure 4975 | . 75 . 73 91 6 122 . . . . 330 64 30 8 294 . 32 158 118 . 86 224 1074 699 756 735 Advance Influence 200 | . . . . . . 200 . . . . . . . . . . . . . . . . . . . . Partial Spotted 105 | . . . . . . . . . . . . . . . . . . 15 . . . . . 15 75 . Lose Combat Pursuer 885 | . . . 60 . . 90 . . . . 165 75 . . 135 . . 90 . . . 30 . 150 45 45 Influence Decreases 18006 | 55 408 267 884 988 441 868 843 315 34 351 488 1348 540 715 366 329 287 815 951 341 519 831 655 1006 1260 2101 Entered New Map 7459 | . . 110 . 90 164 32 236 23 14 . 52 500 420 368 . 299 166 . 253 341 . 107 247 896 1230 1911 Time Decay 7780 | 55 408 157 534 538 277 556 577 237 20 331 416 458 120 347 206 30 101 440 398 . 382 574 398 110 . 110 Lost Part 280 | . . . 50 40 . 10 30 . . . . 20 . . 10 . . . . . . . 10 . 30 80 Lost Ally 837 | . . . . 20 . 120 . 55 . 20 20 220 . . . . 20 225 . . 137 . . . . . Purge Threat 1650 | . . . 300 300 . 150 . . . . . 150 . . 150 . . 150 300 . . 150 . . . . Squads Dispatched 118 | . 3 . 7 3 . 11 . . . 1 8 1 . . 3 . . 5 3 . 5 9 6 7 27 19 Investigation 13 | . 3 . 1 1 . 1 . . . . . . . . . . . 1 . . 3 3 . . . . Extermination 18 | . . . . . . 3 . . . . 2 . . . 1 . . 3 2 . . 4 2 . . 1 Reinforcement 26 | . . . 3 . . 6 . . . . 4 . . . 2 . . 1 1 . 2 . 2 . 4 1 Assault 54 | . . . . 2 . 1 . . . 1 2 1 . . . . . . . . . 2 1 6 22 16 Garrison 6 | . . . 3 . . . . . . . . . . . . . . . . . . . 1 1 . 1 Intercept 1 | . . . . . . . . . . . . . . . . . . . . . . . . . 1 . Searches Triggered . | . . . . . . . . . . . . . . . . . . . . . . . . . . . Construction Impeded 3 | . . . 1 . . 1 . . . . 1 . . . . . . . . . . . . . . . Haulers Reinforced 8 | . . . . . . 2 . . . . 2 . . . 1 . . . . . 2 . 1 . . . Active Scanning Responses . | . . . . . . . . . . . . . . . . . . . . . . . . . . . Cargo Convoy Interrupts 2 | . . . . . . . . . . . 1 . . . . . . 1 . . . . . . . . Stealth | -11 -10 -10 -8 -8 -8 -6 -6 -6 -6 -5 -5 -5 -5 -5 -5 -4 -4 -4 -4 -4 -3 -3 -2 -2 -2 -1 --------- Run | Yrd Mat Sub Mat Sto Rec Fac Low Low Dat Pro Fac Ext Cet Arc Hub Fac Was Fac Arm Lab Res Tes Res Qua Sec Acc Distress Signals 33 | . 2 . 6 1 1 1 . . . . 2 2 2 . . . . 3 5 . 2 1 2 1 2 . Communications Jammed 34 | . . . . . . . . . . . . . . . . . . . 1 . . . 1 12 20 . Distress Signals 33 | . . . . . . . . . . . . . . . . . . . 1 . . . 1 11 20 . Times Spotted 754 | . 26 15 50 38 7 39 15 8 4 25 42 43 8 3 20 . 5 43 28 . 22 36 36 34 102 105 Peak Tracking Total 17 | . 4 2 7 9 1 7 9 6 2 9 10 8 5 1 7 . 2 8 5 . 4 7 5 14 15 17 Tactical Retreats 33 | . . . 4 . . 5 . . . . 4 3 . . 5 . . 3 . . . 2 . 2 3 2 Traps | -11 -10 -10 -8 -8 -8 -6 -6 -6 -6 -5 -5 -5 -5 -5 -5 -4 -4 -4 -4 -4 -3 -3 -2 -2 -2 -1 ------- Run | Yrd Mat Sub Mat Sto Rec Fac Low Low Dat Pro Fac Ext Cet Arc Hub Fac Was Fac Arm Lab Res Tes Res Qua Sec Acc Traps Triggered 24 | . 3 1 . 3 . 2 . . . . . 1 . . 2 1 . 4 . . . 1 3 1 1 1 Indirectly . | . . . . . . . . . . . . . . . . . . . . . . . . . . . Trap Hack Attempts . | . . . . . . . . . . . . . . . . . . . . . . . . . . . Triggered . | . . . . . . . . . . . . . . . . . . . . . . . . . . . Disarmed . | . . . . . . . . . . . . . . . . . . . . . . . . . . . Reprogrammed . | . . . . . . . . . . . . . . . . . . . . . . . . . . . Reused . | . . . . . . . . . . . . . . . . . . . . . . . . . . . Traps Extracted . | . . . . . . . . . . . . . . . . . . . . . . . . . . . Installed . | . . . . . . . . . . . . . . . . . . . . . . . . . . . Triggered . | . . . . . . . . . . . . . . . . . . . . . . . . . . . Machines | -11 -10 -10 -8 -8 -8 -6 -6 -6 -6 -5 -5 -5 -5 -5 -5 -4 -4 -4 -4 -4 -3 -3 -2 -2 -2 -1 ---------- Run | Yrd Mat Sub Mat Sto Rec Fac Low Low Dat Pro Fac Ext Cet Arc Hub Fac Was Fac Arm Lab Res Tes Res Qua Sec Acc Machines Disabled 146 | . 1 1 3 8 . 11 1 1 1 . 12 5 . 1 12 . . 9 3 4 2 14 7 18 20 12 Max in Single Turn 9 | . 1 1 2 2 . 3 1 1 1 . 3 1 . 1 9 . . 2 1 1 1 3 2 3 2 1 Garrison Access 7 | . . . . 1 . . . . . . 1 . . . . . . . . . 2 1 . 1 . 1 Network Hub 2 | . . . . . . . . . . . . . . . 2 . . . . . . . . . . . Energy Cycler 2 | . . . . . . . . . . . . 2 . . . . . . . . . . . . . . Machines Repaired . | . . . . . . . . . . . . . . . . . . . . . . . . . . . Machines Dismantled . | . . . . . . . . . . . . . . . . . . . . . . . . . . . Machines Sabotaged . | . . . . . . . . . . . . . . . . . . . . . . . . . . . Overloaded Fab Kills . | . . . . . . . . . . . . . . . . . . . . . . . . . . . Hacking | -11 -10 -10 -8 -8 -8 -6 -6 -6 -6 -5 -5 -5 -5 -5 -5 -4 -4 -4 -4 -4 -3 -3 -2 -2 -2 -1 --------- Run | Yrd Mat Sub Mat Sto Rec Fac Low Low Dat Pro Fac Ext Cet Arc Hub Fac Was Fac Arm Lab Res Tes Res Qua Sec Acc Machines Accessed 127 | . 11 2 11 9 11 11 . 1 3 . 8 6 . 1 9 . . 7 7 . 12 11 5 2 . . Terminals 87 | . 8 . 8 7 6 10 . . . . 3 5 . . 9 . . 4 7 . 7 8 3 2 . . Fabricators 3 | . . . . . . . . . . . 1 . . . . . . 1 . . . 1 . . . . Repair Stations 2 | . 1 . . 1 . . . . . . . . . . . . . . . . . . . . . . Recycling Units 15 | . 2 . 1 . 4 1 . . . . 1 1 . . . . . 1 . . 3 . 1 . . . Scanalyzers 6 | . . . 1 . . . . . . . 2 . . . . . . 1 . . . 1 1 . . . Garrison Access 6 | . . . 1 1 . . . . . . 1 . . . . . . . . . 2 1 . . . . Total Hacks 412 | . 43 5 38 18 30 30 . 4 26 . 18 9 . 4 19 . . 20 32 . 46 50 16 4 . . Successful 213 | . 24 5 23 14 20 11 . 4 26 . 4 4 . 4 5 . . 7 10 . 14 31 5 2 . . Failed 195 | . 18 . 15 4 10 19 . . . . 14 5 . . 14 . . 13 22 . 29 19 11 2 . . Catastrophic 41 | . . . 3 1 . 4 . . . . 3 3 . . 4 . . 3 9 . 6 1 3 1 . . Database Lockouts 4 | . 1 . . . . . . . . . . . . . . . . . . . 3 . . . . . Manual 148 | . 25 . 21 6 16 8 . . . . 4 1 . . 10 . . 4 . . 16 29 7 1 . . Terminals 305 | . 34 . 32 15 19 28 . . . . 8 7 . . 19 . . 16 32 . 34 45 12 4 . . Fabricators 3 | . . . . . . . . . . . 1 . . . . . . 1 . . . 1 . . . . Repair Stations 7 | . 5 . . 2 . . . . . . . . . . . . . . . . . . . . . . Recycling Units 34 | . 4 . 2 . 9 2 . . . . 3 2 . . . . . 1 . . 8 . 3 . . . Scanalyzers 11 | . . . 2 . . . . . . . 3 . . . . . . 2 . . . 3 1 . . . Garrison Access 11 | . . . 2 1 . . . . . . 3 . . . . . . . . . 4 1 . . . . Terminal Hacks 151 | . 8 5 12 11 10 9 . 4 26 . 2 4 . 4 3 . . 4 10 . 10 25 2 2 . . Record 36 | . . 4 1 . . . . 4 6 . . . . 4 . . . . . . 6 10 . 1 . . Part Schematic 21 | . . . 1 2 3 3 . . 11 . . 1 . . . . . . . . . . . . . . Robot Schematic 6 | . . . . . . . . . 6 . . . . . . . . . . . . . . . . . Robot Analysis 3 | . 1 . . . . . . . . . . . . . . . . . 1 . . 1 . . . . Prototype ID Bank 15 | . 2 . 2 2 3 . . . 3 . . . . . . . . . 1 . 1 1 . . . . Open Door 5 | . . . . 2 . . . . . . 1 1 . . . . . . . . . . . 1 . . Level Access Points 2 | . . . . . . . . . . . 1 . . . . . . . . . . 1 . . . . Branch Access Points 4 | . . . . . . 1 . . . . . . . . . . . 1 . . 1 . 1 . . . Terminal Index 4 | . 1 . 1 . . 1 . . . . . . . . . . . . . . . 1 . . . . Alert Level 13 | . . . 2 2 1 1 . . . . . 1 . . 1 . . 1 1 . 1 2 . . . . Unreport Threat 12 | . . . 2 2 1 1 . . . . . 1 . . 1 . . 1 2 . . 1 . . . . Locate Traps 11 | . 3 . 1 . . 1 . . . . . . . . . . . 1 3 . . 2 . . . . Extermination Status 1 | . . . . . . . . . . . . . . . . . . . . . 1 . . . . . Recall Extermination 1 | . . . . . . . . . . . . . . . . . . . . . . 1 . . . . Hauler Manifests 3 | . . . 1 . . . . . . . . . . . . . . . 1 . . 1 . . . . Registered Components 5 | . 1 . . 1 . 1 . . . . . . . . . . . . . . . 1 1 . . . Zone Layout 4 | . . . 1 . . . . . . . . . . . 1 . . . 1 . . 1 . . . . Proto ID Catalog 1 | . . 1 . . . . . . . . . . . . . . . . . . . . . . . . Protovariant Controls 2 | . . . . . . . . . . . . . . . . . . . . . . 2 . . . . Release Object 2 | . . . . . 2 . . . . . . . . . . . . . . . . . . . . . Fabricator Hacks 1 | . . . . . . . . . . . . . . . . . . . . . . 1 . . . . Build 1 | . . . . . . . . . . . . . . . . . . . . . . 1 . . . . Repair Station Hacks 5 | . 3 . . 2 . . . . . . . . . . . . . . . . . . . . . . Scan Component 3 | . 2 . . 1 . . . . . . . . . . . . . . . . . . . . . . Repair 2 | . 1 . . 1 . . . . . . . . . . . . . . . . . . . . . . Recycling Unit Hacks 11 | . 1 . 1 . 4 1 . . . . . . . . . . . 1 . . 2 . 1 . . . Retrieve Components 11 | . 1 . 1 . 4 1 . . . . . . . . . . . 1 . . 2 . 1 . . . Scanalyzer 6 | . . . 2 . . . . . . . . . . . . . . 2 . . . 1 1 . . . Insert Component 4 | . . . . . . . . . . . . . . . . . . 2 . . . 1 1 . . . Retrieve Study 2 | . . . 2 . . . . . . . . . . . . . . . . . . . . . . . Garrison Access Hacks 4 | . . . . 1 . . . . . . . . . . . . . . . . 2 1 . . . . Seal Access 4 | . . . . 1 . . . . . . . . . . . . . . . . 2 1 . . . . Unauthorized Hacks 35 | . 12 . 8 . 6 1 . . . . 2 . . . 2 . . . . . . 3 1 . . . Terminals 28 | . 10 . 7 . 3 1 . . . . 1 . . . 2 . . . . . . 3 1 . . . Track 4 | . 1 . 1 . . . . . . . . . . . 1 . . . . . . 1 . . . . Botnet 13 | . 3 . 2 . 3 1 . . . . 1 . . . 1 . . . . . . 1 1 . . . Operators 3 | . 1 . 1 . . . . . . . . . . . . . . . . . . 1 . . . . Skim 8 | . 5 . 3 . . . . . . . . . . . . . . . . . . . . . . . Fabricators 1 | . . . . . . . . . . . 1 . . . . . . . . . . . . . . . Liberate 1 | . . . . . . . . . . . 1 . . . . . . . . . . . . . . . Repair Stations . | . . . . . . . . . . . . . . . . . . . . . . . . . . . Recycling Units 6 | . 2 . 1 . 3 . . . . . . . . . . . . . . . . . . . . . Tunnel 6 | . 2 . 1 . 3 . . . . . . . . . . . . . . . . . . . . . Scanalyzers . | . . . . . . . . . . . . . . . . . . . . . . . . . . . Garrison Access . | . . . . . . . . . . . . . . . . . . . . . . . . . . . Data Cores Recovered 3 | . . . . . . 1 . . . . . . . . 1 . . . . . 1 . . . . . Used 1 | . . . . . . . . . . . . . . . . . . . . . 1 . . . . . Hacking Detections 97 | . 10 . 10 5 8 11 . . . . 7 5 . . 8 . . 5 7 . 9 9 3 . . . Full Trace Events 3 | . . . . . 1 1 . . . . . . . . . . . . . . 1 . . . . . Feedback Events 1 | . . . . . . . . . . . . . . . . . . . . . 1 . . . . . Corruption 1 | . . . . . . . . . . . . . . . . . . . . . 1 . . . . . Feedback Blocked . | . . . . . . . . . . . . . . . . . . . . . . . . . . . Robot Schematics Acquired 13 | . . . . . . . . . 6 . . . . . . . . . . . . . . 2 5 . Robots Built . | . . . . . . . . . . . . . . . . . . . . . . . . . . . Authchips . | . . . . . . . . . . . . . . . . . . . . . . . . . . . Time . | . . . . . . . . . . . . . . . . . . . . . . . . . . . Total Robot Build Rating . | . . . . . . . . . . . . . . . . . . . . . . . . . . . Part Schematics Acquired 39 | . . . 1 2 3 3 . . 11 . . 1 . . . . . . . . . . . 1 17 . Parts Built 1 | . . . . . . . . . . . . . . . . . . . . . . 1 . . . . Authchips . | . . . . . . . . . . . . . . . . . . . . . . . . . . . Time 204 | . . . . . . . . . . . . . . . . . . . . . . 204 . . . . Total Part Build Rating 8 | . . . . . . . . . . . . . . . . . . . . . . 8 . . . . Part Studies Acquired 2 | . . . 2 . . . . . . . . . . . . . . . . . . . . . . . Parts Repaired 2 | . 1 . . 1 . . . . . . . . . . . . . . . . . . . . . . Time 76 | . 26 . . 50 . . . . . . . . . . . . . . . . . . . . . . Parts Recycled . | . . . . . . . . . . . . . . . . . . . . . . . . . . . Recycled Matter . | . . . . . . . . . . . . . . . . . . . . . . . . . . . Retrieved Matter . | . . . . . . . . . . . . . . . . . . . . . . . . . . . Retrieved Components 57 | . 10 . 9 . 10 10 . . . . . . . . . . . 2 . . 13 . 3 . . . Parts Scanalyzed . | . . . . . . . . . . . . . . . . . . . . . . . . . . . Part Schematics Acquired . | . . . . . . . . . . . . . . . . . . . . . . . . . . . Parts Damaged . | . . . . . . . . . . . . . . . . . . . . . . . . . . . Bothacking | -11 -10 -10 -8 -8 -8 -6 -6 -6 -6 -5 -5 -5 -5 -5 -5 -4 -4 -4 -4 -4 -3 -3 -2 -2 -2 -1 ------------ Run | Yrd Mat Sub Mat Sto Rec Fac Low Low Dat Pro Fac Ext Cet Arc Hub Fac Was Fac Arm Lab Res Tes Res Qua Sec Acc Used RIF Installer . | . . . . . . . . . . . . . . . . . . . . . . . . . . . Robots Hacked . | . . . . . . . . . . . . . . . . . . . . . . . . . . . Non-combat . | . . . . . . . . . . . . . . . . . . . . . . . . . . . Combat . | . . . . . . . . . . . . . . . . . . . . . . . . . . . Robot Hacks Applied . | . . . . . . . . . . . . . . . . . . . . . . . . . . . Relay Couplers Released 6 | . . . . . . . . . . . . . . . . . . . . . . . 4 . . 2 Machine Destruction 2 | . . . . . . . . . . . . . . . . . . . . . . . . . . 2 Programmers 4 | . . . . . . . . . . . . . . . . . . . . . . . 4 . . . Fabnet Peak Effective % . | . . . . . . . . . . . . . . . . . . . . . . . . . . . Robots Rewired 17 | . . . . . 5 . 4 . . 2 . 6 . . . . . . . . . . . . . . Allies Hacked 4 | . . . . . . . . . . . 1 . . . . . . . . . 3 . . . . . Hacks Repelled . | . . . . . . . . . . . . . . . . . . . . . . . . . . . Allies | -11 -10 -10 -8 -8 -8 -6 -6 -6 -6 -5 -5 -5 -5 -5 -5 -4 -4 -4 -4 -4 -3 -3 -2 -2 -2 -1 -------- Run | Yrd Mat Sub Mat Sto Rec Fac Low Low Dat Pro Fac Ext Cet Arc Hub Fac Was Fac Arm Lab Res Tes Res Qua Sec Acc Total Allies 61 | . . . . 2 5 . 4 2 . 2 3 13 . . . . 20 . 10 . . . . . . . Largest Group 19 | . . . . 2 6 6 4 6 . 2 3 9 . . . . 19 14 10 10 10 . . . . . Highest-Rated Group 684 | . . . . 62 107 107 111 151 . 58 90 377 . . . . 684 486 481 481 481 . . . . . Highest-Rated Ally 159 | . . . . 31 31 31 29 29 . 29 30 159 . . . . 50 46 58 58 58 . . . . . Total Orders 10 | . . . . . . . . 2 . . . . . . . . . . 2 6 . . . . . . STAY 5 | . . . . . . . . 1 . . . . . . . . . . 1 3 . . . . . . FOLLOW 5 | . . . . . . . . 1 . . . . . . . . . . 1 3 . . . . . . Ally Attacks 343 | . . . . 8 8 38 2 20 . 16 5 127 . . . . 3 56 . . 60 . . . . . Total Damage 7072 | . . . . 164 105 733 37 230 . 272 185 2839 . . . . 112 990 . . 1405 . . . . . Kills 55 | . . . . . 1 6 . 4 . . 1 27 . . . . . 10 . . 6 . . . . . Allies Corrupted 1 | . . . . . . . . . . . . 1 . . . . . . . . . . . . . . Allies Melted . | . . . . . . . . . . . . . . . . . . . . . . . . . . . Intel | -11 -10 -10 -8 -8 -8 -6 -6 -6 -6 -5 -5 -5 -5 -5 -5 -4 -4 -4 -4 -4 -3 -3 -2 -2 -2 -1 ------- Run | Yrd Mat Sub Mat Sto Rec Fac Low Low Dat Pro Fac Ext Cet Arc Hub Fac Was Fac Arm Lab Res Tes Res Qua Sec Acc Active Infowar (turns) 16100 | 10 2418 1690 2845 870 . 1281 674 . . . 83 . . . . . . 775 691 439 830 1422 935 327 587 223 Optics 1 | . . . . . . . . . . . . . . . . . . . . . . . . . 1 . Sensors 7940 | . . . . . . 1281 674 . . . 83 . . . . . . 775 676 439 830 1422 934 327 499 . A.S.S. 214 | . . . . . . . . . . . . . . . . . . . . . . . . . . 214 IFF 13 | . . . . . . . . . . . . . . . . . . . . . . . 13 . . . Terrain 7 | . . . . 3 . . . . . . . . . . . . . . . . . . . . . 4 Seismic 7838 | 10 2418 1690 2845 867 . . . . . . . . . . . . . . . . . . 1 . . 7 Jamming 1346 | . . . . . . . . . . . . . . . . . . . 15 . . . 428 326 577 . Robot Analysis Total 3 | . 1 . . . . . . . . . . . . . . . . . 1 . . 1 . . . . Derelict Logs Recovered 6 | . . 2 . . . . 1 1 . 2 . . . . . . . . . . . . . . . . Drone Launches . | . . . . . . . . . . . . . . . . . . . . . . . . . . . Drone Recoveries . | . . . . . . . . . . . . . . . . . . . . . . . . . . . Exploration | -11 -10 -10 -8 -8 -8 -6 -6 -6 -6 -5 -5 -5 -5 -5 -5 -4 -4 -4 -4 -4 -3 -3 -2 -2 -2 -1 ------------- Run | Yrd Mat Sub Mat Sto Rec Fac Low Low Dat Pro Fac Ext Cet Arc Hub Fac Was Fac Arm Lab Res Tes Res Qua Sec Acc Turns Passed 35929 | 250 2442 6137 2898 1537 2290 1631 1776 1625 412 1661 1134 1148 254 2020 423 78 407 1085 945 456 923 1755 945 327 654 716 Spaces Moved 22398 | 91 1314 3138 1250 812 1291 1203 1020 847 214 1067 792 792 161 76 479 76 454 1376 1032 290 1087 1068 692 405 810 561 Core 4 | 4 . . . . . . . . . . . . . . . . . . . . . . . . . . Treads 5205 | 87 1314 1865 471 18 61 . . 162 214 123 539 . . . . . . . . . 237 114 . . . . Legs 9399 | . . . 779 629 408 388 129 685 . 944 253 792 161 76 479 76 454 970 . . . 949 105 260 810 52 Wheels 1438 | . . 1273 . 165 . . . . . . . . . . . . . . . . . . . . . . Hover 4560 | . . . . . 715 734 . . . . . . . . . . . 406 1032 290 850 . 24 . . 509 Flight 1792 | . . . . . 107 81 891 . . . . . . . . . . . . . . 5 563 145 . . Fastest Speed 36 | 50 160 110 113 113 103 97 97 100 100 132 110 98 98 61 61 61 61 49 49 49 49 93 36 36 36 65 Average Speed 113 | 155 160 162 142 140 133 97 156 172 111 133 114 100 98 71 61 61 61 57 49 49 66 131 99 36 41 65 Slowest Speed 260 | 160 160 250 250 260 190 103 199 190 132 214 132 110 98 98 61 61 61 61 49 49 126 177 144 36 65 65 Overloaded Moves . | . . . . . . . . . . . . . . . . . . . . . . . . . . . Propulsion Burnouts . | . . . . . . . . . . . . . . . . . . . . . . . . . . . Robots Hopped 1 | . . . . . . . . . . . . . . . . . . . . . . . 1 . . . Potential Cave-ins 17 | . . . 2 . . . . . . . . . . . . . . . . . . 5 1 2 4 3 Cave-ins Triggered 2 | . . . . . . . . . . . . . . . 1 . . . . . . 1 . . . . Teleports 1 | . . . . . . . . . . . . . . . . . . . . . . . . . 1 . Exploration Rate (%) 61 | 4 99 96 77 95 98 30 95 82 80 93 19 85 56 69 46 3 96 27 44 92 29 91 26 55 51 18 Regions Visited 26 Branch Regions 16 Pre-discovered Areas 11 | . 3 1 1 . 3 . 1 1 1 . . . . . . . . . . . . . . . . . Known Exits Taken 15 | . 1 1 1 1 . 1 . . . 1 . . . . 1 . . 1 1 1 1 1 1 1 1 . Unknown Exits Taken 9 | 1 . . . . 1 . 1 1 1 . 1 1 1 1 . . . . . . . . . . . . Scrap Searched 29 | . . 19 . . . . 3 3 . 4 . . . . . . . . . . . . . . . . Spaces Dug 187 | . 11 . 18 11 1 11 . . 7 . 38 . . . 10 . . 4 11 . 1 13 . 10 1 40 Terrain Destroyed 2667 | . 73 1 85 95 6 143 16 . 7 . 180 26 14 5 203 . 19 94 63 . 49 172 453 310 371 282 Melee 9 | . . . 2 . . . . . 7 . . . . . . . . . . . . . . . . . Projectile 1797 | . 17 1 60 26 6 54 . . . . 73 26 14 5 41 . 19 51 63 . 23 172 421 244 261 220 AOE 858 | . 56 . 23 69 . 89 16 . . . 107 . . . 162 . . 43 . . 26 . 32 66 107 62 Terrain Rammed . | . . . . . . . . . . . . . . . . . . . . . . . . . . . Walls Destroyed . | . . . . . . . . . . . . . . . . . . . . . . . . . . . Machines Disabled . | . . . . . . . . . . . . . . . . . . . . . . . . . . . Actions | -11 -10 -10 -8 -8 -8 -6 -6 -6 -6 -5 -5 -5 -5 -5 -5 -4 -4 -4 -4 -4 -3 -3 -2 -2 -2 -1 --------- Run | Yrd Mat Sub Mat Sto Rec Fac Low Low Dat Pro Fac Ext Cet Arc Hub Fac Was Fac Arm Lab Res Tes Res Qua Sec Acc Total 30966 | 137 1494 4038 2140 1068 1843 1558 1176 981 340 1259 950 1095 220 2032 561 109 546 1590 1350 588 1224 1328 906 559 1053 821 Wait 5347 | . 54 728 638 87 395 163 50 98 57 108 19 183 8 1947 22 28 42 64 134 267 19 76 32 76 43 9 Move 22369 | 90 1313 3137 1249 811 1290 1202 1019 846 213 1066 791 791 160 75 478 76 453 1375 1031 289 1086 1066 689 404 809 560 Hop 1 | . . . . . . . . . . . . . . . . . . . . . . . 1 . . . Pick Up 273 | 6 11 27 34 8 15 27 2 2 8 5 23 12 4 . 1 . 1 18 15 4 11 12 11 6 4 6 Fast Attach 106 | 7 2 7 12 7 1 4 3 . 3 3 . 2 1 . 2 1 3 1 3 4 6 4 9 . 7 14 Attach 56 | . . 5 11 3 1 5 5 1 1 1 1 3 . . . . 1 1 3 . 1 . 4 2 5 2 Detach 27 | . 1 1 2 1 3 5 3 . 1 . . 1 1 . . 1 . . . . 1 1 4 . 1 . Swap 304 | . 26 20 31 38 3 18 2 3 3 4 17 4 1 . 3 . . 20 19 1 19 37 14 9 10 2 Drop 336 | 1 11 30 38 17 39 16 8 1 10 3 20 13 3 . 2 3 4 20 13 6 15 11 23 5 9 15 Fire 1831 | 33 73 64 118 78 16 117 34 29 18 51 76 59 42 10 53 . 42 88 131 17 65 111 74 57 165 210 Melee 40 | . . 7 2 . 5 . . . 26 . . . . . . . . . . . . . . . . . Ram 3 | . . . . 1 . . . . . . . . . . . . . . . . 1 . . . . 1 Kick 11 | . . . 2 4 . 1 . . . . . 1 . . . . . 2 . . . 1 . . . . Crush 10 | . 3 . 3 . . . . 1 . . 3 . . . . . . . . . . . . . . . Escape Stasis 72 | . . . . 13 . . . . . . . 3 . . . . . . . . . 9 45 . . 2 Rewire 168 | . . . . . 75 . 50 . . 18 . 23 . . . . . 1 1 . . . . . . . Trap . | . . . . . . . . . . . . . . . . . . . . . . . . . . . Miscellaneous 12 | . . 12 . . . . . . . . . . . . . . . . . . . . . . . . Route ------- -11/Scrapyard -10/Materials (discovered 5 exits: *Mat x3 / [*Min] / *Sub) -10/Subcaves (discovered 4 exits: *Mat x2 / Rec / [*Scr]) -8/Materials (discovered 3 exits: *Fac x2 / *Sto) -8/Storage (discovered 2 exits: *Fac / *Rec) -8/Recycling -6/Factory (discovered 2 exits: *Low x2) -6/Lower Caves -6/Lower Caves (discovered 2 exits: *Fac / *Dat) -6/Data Miner -5/Proximity Caves -5/Factory (discovered 6 exits: Fac x4 / Upp / *Ext) -5/Extension (discovered 2 exits: *Fac / *Cet) -5/Cetus (discovered 2 exits: *Fac / *Arc) -5/Archives -5/Hub_04(d) (discovered 2 exits: *Fac x2) -4/Factory -4/Waste -4/Factory (discovered 3 exits: *Upp x2 / *Arm) -4/Armory (discovered 2 exits: *Res / *Lab) -4/Lab -3/Research (discovered 2 exits: *Tes x2) -3/Testing -2/Research (discovered 2 exits: *Qua x2) -2/Quarantine (discovered 3 exits: *Acc / *Sec / [*Frg]) -2/Section 7 -1/Access Tau Ceti IV Orbit History --------- Turn | Location | Event 11 | -11/Scrapyard | Discovered new exit (range 15) 251 | -11/Scrapyard | Entered Materials 300 | -10/Materials | Build established: Mutant 545 | -10/Materials | Discovered new exit (range 3) 772 | -10/Materials | Discovered new exit (range 15) 856 | -10/Materials | Discovered new exit (range 16) 865 | -10/Materials | Central database locked down 920 | -10/Materials | Identified exit to Materials 967 | -10/Materials | Learned location of 1 exit from Storage 1002 | -10/Materials | Learned location of Mines (-9) 1025 | -10/Materials | Learned Storage stockpile data 1036 | -10/Materials | Identified exit to Subcaves 1039 | -10/Materials | Learned location of 2 exits from Subcaves 1044 | -10/Materials | Learned Storage security intel 1061 | -10/Materials | Learned location of 1 exit from Storage 2512 | -10/Materials | Repaired Lgt. Treads 2693 | -10/Materials | Entered Subcaves 2694 | -10/Subcaves | Approached by a straggling Scientist 2694 | -10/Subcaves | Identified exit to Materials 2695 | -10/Subcaves | Identified exit to Recycling 2702 | -10/Subcaves | Shifting Twisted Machinery released Battle Rifle 2991 | -10/Subcaves | Disturbed a concealed Subdweller 3223 | -10/Subcaves | Shifting Twisted Machinery released Scrap Shield 3556 | -10/Subcaves | Scientist uncovered a shortcut to Scraptown 3581 | -10/Subcaves | Disturbed a concealed Subdweller 3714 | -10/Subcaves | Shifting Twisted Machinery released Lgt. Humpback 3882 | -10/Subcaves | Build established: Subdweller-Mutant 3961 | -10/Subcaves | Learned Materials stockpile data 4167 | -10/Subcaves | A swath of the cavern ceiling suddenly collapsed 4226 | -10/Subcaves | Shifting Twisted Machinery released Shrapnel Trap 4249 | -10/Subcaves | Shifting Twisted Machinery released Sub. Shrapnel Launcher 4278 | -10/Subcaves | Learned Materials emergency access door positions 6492 | -10/Subcaves | A swath of the cavern ceiling suddenly collapsed 6775 | -10/Subcaves | Visited Clippyterm 6778 | -10/Subcaves | Learned location of Section 7 (-2) 6899 | -10/Subcaves | Visited 4L-MR0's lab 6982 | -10/Subcaves | Found Cargo Legs 7102 | -10/Subcaves | Shifting Twisted Machinery released Sub. Beam Cannon 7517 | -10/Subcaves | Build established: Mutant 8830 | -10/Subcaves | Entered Materials 8830 | -8/Materials | Evolved 4 slots: Power x1, Propulsion x2, Utility x1 8940 | -8/Materials | Garrison activated, responded to threat 8988 | -8/Materials | Destroyed 7 combat bots 9131 | -8/Materials | Build established: Derelict-Mutant 10002 | -8/Materials | Discovered new exit (range 15) 10090 | -8/Materials | Build established: Scavenger-Mutant 10180 | -8/Materials | Identified exit to Storage 10501 | -8/Materials | Attached Cargo Legs, gained temporary slots: Utility x2 10579 | -8/Materials | Discovered new exit (range 15) 10806 | -8/Materials | Build established: Hacker-Mutant 11172 | -8/Materials | Discovered new exit (range 5) 11728 | -8/Materials | Entered Storage 11729 | -8/Storage | Identified exit to Factory 12222 | -8/Storage | Repaired Lgt. Angular Momentum Engine 12353 | -8/Storage | Used back door to open Recycling access 12963 | -8/Storage | Met a pair of Derelict thieves 12989 | -8/Storage | Core integrity fell below 50% 13014 | -8/Storage | Destroyed 10 combat bots 13050 | -8/Storage | Build established: Scavenger-Mutant 13265 | -8/Storage | Entered Recycling 13265 | -8/Recycling | Accompanied by 1 ally 13447 | -8/Recycling | Build established: Mutant 13612 | -8/Recycling | Discovered new exit (range 16) 13886 | -8/Recycling | Entered Scraplab 13906 | -8/Recycling | Found Prototype Device 13906 | -8/Recycling | Identified Scrap Engine 14347 | -8/Recycling | Build established: Construct 15456 | -8/Recycling | Build established: Commander-Construct 15555 | -8/Recycling | Entered Factory 15555 | -6/Factory | Accompanied by 6 allies 15555 | -6/Factory | Evolved 4 slots: Propulsion x1, Utility x2, Weapon x1 15918 | -6/Factory | Build established: Construct 16019 | -6/Factory | Identified exit to Lower Caves 16545 | -6/Factory | Destroyed 7 combat bots 16605 | -6/Factory | First assault squad dispatched 16910 | -6/Factory | Watched by a mysterious "MATRIX" hacker. 17186 | -6/Factory | Entered Lower Caves 17297 | -6/Lower Caves | Encountered a Warlord checkpoint 17854 | -6/Lower Caves | Attracted the attention of an 0b10 outpost 17917 | -6/Lower Caves | Destroyed 9 combat bots 18300 | -6/Lower Caves | Discovered new exit (range 8) 18962 | -6/Lower Caves | Entered another Lower Caves area 18962 | -6/Lower Caves | Accompanied by 4 allies 18963 | -6/Lower Caves | Encountered a Warlord checkpoint 18965 | -6/Lower Caves | Build established: Commander-Construct 18989 | -6/Lower Caves | Discovered new exit (range 13) 19904 | -6/Lower Caves | A Commander dispatched an escort 19939 | -6/Lower Caves | Learned 8 Factory zone layouts 19939 | -6/Lower Caves | Learned Armory emergency access door positions 19955 | -6/Lower Caves | Learned 4 Factory zone layouts 20219 | -6/Lower Caves | Attracted the attention of an 0b10 base 20272 | -6/Lower Caves | Lost 6 allies 20521 | -6/Lower Caves | Build established: Construct 20566 | -6/Lower Caves | Discovered new exit (range 10) 20578 | -6/Lower Caves | Acquired the password to a Derelict Tinkerer's latest research 20587 | -6/Lower Caves | Entered Data Miner 20587 | -6/Data Miner | Discovered new exit (range 6) 20606 | -6/Data Miner | Met Data Miner 20625 | -6/Data Miner | Acquired the access code to Warlord's prototype stash 20638 | -6/Data Miner | Received God Mode back door access code from Data Miner 20658 | -6/Data Miner | Destroyed Data Miner 20660 | -6/Data Miner | Data Conduit disabled 20901 | -6/Data Miner | Found Prototype Device 20901 | -6/Data Miner | Identified Exp. Thermal Shield 20922 | -6/Data Miner | Found Prototype Hackware 20925 | -6/Data Miner | Found Prototype Hackware 20999 | -6/Data Miner | Entered Proximity Caves 21220 | -5/Proximity Caves | Attracted the attention of an 0b10 checkpoint 21527 | -5/Proximity Caves | Identified exit to Factory 21716 | -5/Proximity Caves | Attracted the attention of an 0b10 outpost 21782 | -5/Proximity Caves | Destroyed 9 combat bots 22240 | -5/Proximity Caves | Spotted B-75 Beast 22255 | -5/Proximity Caves | Destroyed B-75 Beast 22660 | -5/Proximity Caves | Entered Factory 22660 | -5/Factory | Evolved 2 slots: Power x1, Utility x1 22661 | -5/Factory | Identified exit to Upper Caves 22662 | -5/Factory | Identified exit to Factory 23130 | -5/Factory | P-70 Sage assimilated allied L-41 Fighter 23130 | -5/Factory | P-70 Sage assimilated allied L-41 Fighter 23591 | -5/Factory | Discovered new exit (range 6) 23719 | -5/Factory | Cargo convoy interrupted 23794 | -5/Factory | Entered Extension 23839 | -5/Extension | Rescued A7 23864 | -5/Extension | Rescued a captive Derelict 23865 | -5/Extension | Rescued a captive Derelict 24329 | -5/Extension | Build established: Commander-Construct 24329 | -5/Extension | Spotted B-75 Beast 24338 | -5/Extension | Allies destroyed B-75 Beast 24350 | -5/Extension | Spotted B-75 Beast 24377 | -5/Extension | Allies destroyed B-75 Beast 24419 | -5/Extension | Disrupted transfer network 24694 | -5/Extension | First assault squad dispatched 24730 | -5/Extension | Energy Cycler disabled 24730 | -5/Extension | Rescued a captive Derelict 24731 | -5/Extension | Rescued a captive Derelict 24731 | -5/Extension | Rescued a captive Derelict 24732 | -5/Extension | Rescued a captive Derelict 24732 | -5/Extension | Rescued a captive Derelict 24736 | -5/Extension | Rescued a captive Derelict 24748 | -5/Extension | Rescued a captive Derelict 24754 | -5/Extension | Extracted ID and sensor layout for unrecognized location from A7's data core 24784 | -5/Extension | Lost 6 allies 24799 | -5/Extension | Discovered exit to Factory (range 10) 24800 | -5/Extension | Discovered new exit (range 6) 24882 | -5/Extension | Disrupted transfer network 24894 | -5/Extension | Lost 3 allies 24942 | -5/Extension | Entered Cetus 24960 | -5/Cetus | Spotted Cetus Guard 24964 | -5/Cetus | Destroyed Cetus Guard 24972 | -5/Cetus | Destroyed Cetus Guard 24974 | -5/Cetus | Destroyed Cetus Guard 24976 | -5/Cetus | Spotted Cetus Guard 24995 | -5/Cetus | Destroyed Cetus Guard 25051 | -5/Cetus | Build established: Construct 25072 | -5/Cetus | Discovered new exit (range 16) 25092 | -5/Cetus | Spotted Cetus Guard 25093 | -5/Cetus | Spotted Cetus Guard 25096 | -5/Cetus | Destroyed Cetus Guard 25097 | -5/Cetus | Spotted Cetus Guard 25102 | -5/Cetus | Destroyed Cetus Guard 25103 | -5/Cetus | Spotted Cetus Guard 25121 | -5/Cetus | Destroyed Cetus Guard 25131 | -5/Cetus | Destroyed Cetus Guard 25142 | -5/Cetus | Discovered exit to Factory (range 16) 25147 | -5/Cetus | Met Revision 17 25196 | -5/Cetus | Entered Archives 25374 | -5/Archives | Discovered new exit (range 14) 25377 | -5/Archives | Unable to access archive contents 27216 | -5/Archives | Entered Hub_04(d) 27216 | -5/Hub_04(d) | Discovered exit to Factory (range 10) 27517 | -5/Hub_04(d) | Network Hub disabled 27521 | -5/Hub_04(d) | Crushed by falling debris 27539 | -5/Hub_04(d) | Discovered exit to Factory (range 6) 27579 | -5/Hub_04(d) | Network Hub disabled 27608 | -5/Hub_04(d) | Spotted Lightning 27616 | -5/Hub_04(d) | Spotted Lightning 27616 | -5/Hub_04(d) | Spotted Lightning 27639 | -5/Hub_04(d) | Entered Factory 27639 | -4/Factory | Evolved 2 slots: Utility x1, Weapon x1 27717 | -4/Factory | Sucked down chute 27717 | -4/Factory | Entered Waste 27718 | -4/Waste | Met a frightened Derelict 27723 | -4/Waste | Spotted C-40 Crusher 27746 | -4/Waste | Destroyed C-40 Crusher 27763 | -4/Waste | Spotted C-40 Crusher 27779 | -4/Waste | Destroyed C-40 Crusher 27782 | -4/Waste | Spotted C-40 Crusher 27794 | -4/Waste | Destroyed C-40 Crusher 27802 | -4/Waste | Spotted C-40 Crusher 27802 | -4/Waste | Destroyed C-40 Crusher 27804 | -4/Waste | Spotted C-40 Crusher 27808 | -4/Waste | Destroyed C-40 Crusher 27812 | -4/Waste | Spotted C-40 Crusher 27816 | -4/Waste | Destroyed C-40 Crusher 27887 | -4/Waste | Discovered new exit (range 13) 27971 | -4/Waste | Warlord forces began an assault 28118 | -4/Waste | Lost 3 allies 28124 | -4/Waste | Entered Factory 28124 | -4/Factory | Accompanied by 14 allies 28181 | -4/Factory | Lost 4 allies 28194 | -4/Factory | Spotted B-86 Titan 28206 | -4/Factory | Allies destroyed B-86 Titan 28294 | -4/Factory | Identified exit to Upper Caves 28294 | -4/Factory | Identified exit to Armory 28412 | -4/Factory | Assembled infested ambush trap array 28546 | -4/Factory | Lost 8 allies 29000 | -4/Factory | Destroyed 8 combat bots 29078 | -4/Factory | Identified Deep Network Scanner 29078 | -4/Factory | Identified Ghost Barrier 29142 | -4/Factory | Cargo convoy interrupted 29209 | -4/Factory | Entered Armory 29449 | -4/Armory | Spotted B-86 Titan 29513 | -4/Armory | Destroyed B-86 Titan 29768 | -4/Armory | Destroyed 7 combat bots 29960 | -4/Armory | Discovered new exit (range 4) 29961 | -4/Armory | Identified exit to Research 30033 | -4/Armory | Assisted by bots powering up and referring to "LRC-V3" 30092 | -4/Armory | Discovered new exit (range 4) 30096 | -4/Armory | Identified exit to Lab 30154 | -4/Armory | Entered Lab 30154 | -4/Lab | Accompanied by 10 allies 30171 | -4/Lab | Discovered exit to Research (range 9) 30177 | -4/Lab | Hidden lab's door opened automatically 30177 | -4/Lab | Sensor layout match revealed 30178 | -4/Lab | Gained access to the hidden lab's interior 30334 | -4/Lab | Found Alien Artifact 30334 | -4/Lab | Identified Integrated Reactor 30334 | -4/Lab | Installed Integrated Reactor, increased core energy generation (+10) 30340 | -4/Lab | Found Alien Artifact 30340 | -4/Lab | Identified Core Regenerator 30340 | -4/Lab | Used Core Regenerator, restored core integrity (+202) 30362 | -4/Lab | Found Alien Artifact 30371 | -4/Lab | Build established: Commander-Construct 30373 | -4/Lab | Found Prototype Energy Gun 30373 | -4/Lab | Identified Tachyon Dispersion Ray 30481 | -4/Lab | Found Prototype Protection 30483 | -4/Lab | Found Prototype Hackware 30517 | -4/Lab | Found Alien Artifact 30610 | -4/Lab | Entered Research 30610 | -3/Research | Accompanied by 10 allies 30610 | -3/Research | Evolved 2 slots: Propulsion x1, Utility x1 30745 | -3/Research | Identified exit to Testing 30758 | -3/Research | Found Prototype Hackware 30758 | -3/Research | Identified Exp. Hacking Suite 30767 | -3/Research | Central database locked down 30810 | -3/Research | Revision forces began assault on 0b10 30891 | -3/Research | Met up with Revision 17++ 30925 | -3/Research | Spotted B-86 Titan 30935 | -3/Research | Destroyed B-86 Titan 30946 | -3/Research | Lost 3 allies 30997 | -3/Research | Central database locked down 31074 | -3/Research | Build established: Hacker-Construct 31108 | -3/Research | Identified Quantum Router 31110 | -3/Research | Identified Hvy. Regenerative Plating 31213 | -3/Research | Central database locked down 31310 | -3/Research | Research terminal network offline 31533 | -3/Research | Entered Testing 31551 | -3/Testing | Protovariant out of control (PX-ZB24OVXP2T) 31551 | -3/Testing | Unleashed a protovariant (PX-ZB24OVXP2T) 31627 | -3/Testing | Identified exit to Research 31658 | -3/Testing | Found Prototype Device 31658 | -3/Testing | Identified 2N-1CE's Frost Array 31746 | -3/Testing | Targeted by mysterious "MATRIX" hacker. 31916 | -3/Testing | Found Prototype Device 31916 | -3/Testing | Identified Exp. Focal Shield 32005 | -3/Testing | Found Prototype Ballistic Gun 32005 | -3/Testing | Identified Hyp. Multirail 32187 | -3/Testing | Crushed by falling debris 32248 | -3/Testing | Protovariant out of control (PP-RFJXH0UTLB) 32248 | -3/Testing | Unleashed a protovariant (PP-RFJXH0UTLB) 32293 | -3/Testing | Scanned by Researcher 32295 | -3/Testing | Destroyed Investigator 32335 | -3/Testing | Fabricated Exp. Thermal Generator? 32587 | -3/Testing | Spotted Striker 32591 | -3/Testing | Spotted Striker 32684 | -3/Testing | Found Prototype Processor 32684 | -3/Testing | Identified Exp. Melee Analysis Suite 32793 | -3/Testing | Spotted Investigator 32800 | -3/Testing | Destroyed Investigator 33219 | -3/Testing | Identified Core Reset Matrix 33288 | -3/Testing | Entered Research 33288 | -2/Research | Evolved 2 slots: Power x1, Utility x1 33308 | -2/Research | Identified Transdimensional Reconstructor 33591 | -2/Research | Build established: Generator-Construct 33789 | -2/Research | Spotted B-90 Cyclops 33796 | -2/Research | Destroyed B-90 Cyclops 33801 | -2/Research | Found Prototype Device 33801 | -2/Research | Identified Exp. Transmission Jammer 33805 | -2/Research | Found Exp. Transmission Jammer 33822 | -2/Research | Found Exp. Transmission Jammer 33844 | -2/Research | Destroyed 9 combat bots 33854 | -2/Research | Identified exit to Quarantine 34038 | -2/Research | First assault squad dispatched 34187 | -2/Research | Garrison activated, responded to threat 34212 | -2/Research | Found Prototype Energy Gun 34212 | -2/Research | Identified Enh. Gamma Rifle 34233 | -2/Research | Entered Quarantine 34238 | -2/Quarantine | Used Core Reset Matrix 34241 | -2/Quarantine | Found Hpw. Transdimensional Reconstructor 34242 | -2/Quarantine | Detected hypermatrix surge 34242 | -2/Quarantine | Sensed 15 artifacts in vicinity 34250 | -2/Quarantine | Found Dimensional Node Initializer 34251 | -2/Quarantine | Initialized slip node 34319 | -2/Quarantine | Met incapacitated Sigix Warrior 34319 | -2/Quarantine | Lockdown squad dispatched 34320 | -2/Quarantine | Acquired the access code to the Sigix quarantine chamber 34321 | -2/Quarantine | Unlocked Sigix quarantine chamber 34324 | -2/Quarantine | Found Sigix Containment Pod 34392 | -2/Quarantine | Spotted Lightning 34392 | -2/Quarantine | Destroyed Lightning 34402 | -2/Quarantine | Destroyed Lightning 34406 | -2/Quarantine | Spotted Lightning 34407 | -2/Quarantine | Destroyed Lightning 34430 | -2/Quarantine | Found Prototype Device 34430 | -2/Quarantine | Identified Exp. EM Shield 34449 | -2/Quarantine | Destroyed 12 combat bots 34452 | -2/Quarantine | Found Prototype Processor 34452 | -2/Quarantine | Identified Exp. Targeting Computer 34460 | -2/Quarantine | High security lockdown imminent 34467 | -2/Quarantine | Found Prototype Device 34467 | -2/Quarantine | Identified Exp. Phase Shifter 34473 | -2/Quarantine | Found Exp. Targeting Computer 34504 | -2/Quarantine | Discovered new exit (range 8) 34507 | -2/Quarantine | Identified exit to Access 34532 | -2/Quarantine | Spotted Fortress 34540 | -2/Quarantine | High security lockdown engaged 34557 | -2/Quarantine | Discovered new exit (range 5) 34557 | -2/Quarantine | Discovered new exit (range 6) 34558 | -2/Quarantine | Identified exit to Section 7 34560 | -2/Quarantine | Entered Section 7 34561 | -2/Section 7 | Detected hypermatrix surge 34561 | -2/Section 7 | Sensed 20 artifacts in vicinity 34562 | -2/Section 7 | Spotted B-90 Cyclops 34567 | -2/Section 7 | High security lockdown imminent 34567 | -2/Section 7 | Destroyed B-90 Cyclops 34577 | -2/Section 7 | Spotted S7 Guard 34582 | -2/Section 7 | Destroyed S7 Guard 34588 | -2/Section 7 | Found Core Membrane 34588 | -2/Section 7 | Installed Core Membrane, gained immunity to corruption 34594 | -2/Section 7 | Scanned by Researcher 34618 | -2/Section 7 | Spotted S7 Guard 34625 | -2/Section 7 | Destroyed S7 Guard 34647 | -2/Section 7 | High security lockdown engaged 34721 | -2/Section 7 | Found Integrity Redistributor 34732 | -2/Section 7 | Discovered exit to Access (range 8) 34774 | -2/Section 7 | Spotted Alpha 7 34779 | -2/Section 7 | Spotted Alpha 7 34783 | -2/Section 7 | Destroyed Alpha 7 34786 | -2/Section 7 | Destroyed Alpha 7 34805 | -2/Section 7 | Spotted B-99 Colossus 34861 | -2/Section 7 | Destroyed B-99 Colossus 34867 | -2/Section 7 | Found Corrupted Prototype Ballistic Gun 34880 | -2/Section 7 | Found Integrated Reactor 34880 | -2/Section 7 | Installed Integrated Reactor, increased core energy generation (+10) 34882 | -2/Section 7 | Found Integrated Reactor 34882 | -2/Section 7 | Installed Integrated Reactor, increased core energy generation (+10) 34883 | -2/Section 7 | Found Integrated Reactor 34883 | -2/Section 7 | Installed Integrated Reactor, increased core energy generation (+10) 34910 | -2/Section 7 | Intercept squad dispatched 34922 | -2/Section 7 | Spotted Tracker 34924 | -2/Section 7 | Spotted Tracker 34926 | -2/Section 7 | Destroyed Tracker 34927 | -2/Section 7 | Destroyed Tracker 34945 | -2/Section 7 | Spotted Combat Programmer 34954 | -2/Section 7 | Spotted Combat Programmer 34958 | -2/Section 7 | Destroyed Combat Programmer 34971 | -2/Section 7 | Destroyed Combat Programmer 34999 | -2/Section 7 | Spotted Striker 35004 | -2/Section 7 | Destroyed Striker 35009 | -2/Section 7 | Destroyed Executioner 35014 | -2/Section 7 | Spotted Striker 35015 | -2/Section 7 | Destroyed Striker 35035 | -2/Section 7 | Found Corrupted Prototype Processor 35035 | -2/Section 7 | Identified Exp. Target Analyzer 35059 | -2/Section 7 | Destroyed Executioner 35126 | -2/Section 7 | Destroyed 51 combat bots 35163 | -2/Section 7 | Found Prototype Processor 35163 | -2/Section 7 | Identified Exp. Core Analyzer 35184 | -2/Section 7 | Warped through subspace 35214 | -2/Section 7 | Entered Access 35214 | -1/Access | Evolved 2 slots: Utility x2 35279 | -1/Access | Found Prototype Device 35279 | -1/Access | Identified Exp. Thermal Shield 35380 | -1/Access | Destroyed 8 combat bots 35445 | -1/Access | High security lockdown imminent 35492 | -1/Access | Used Integrity Redistributor, redistributed integrity from core (-363) 35525 | -1/Access | High security lockdown engaged 35563 | -1/Access | Found Prototype Device 35563 | -1/Access | Identified Active Sensor Suite 35610 | -1/Access | Destroyed 42 combat bots 35615 | -1/Access | Spotted B-99 Colossus 35679 | -1/Access | Destroyed B-99 Colossus 35715 | -1/Access | Spotted B-99 Colossus 35723 | -1/Access | Spotted B-99 Colossus 35749 | -1/Access | Destroyed B-99 Colossus 35778 | -1/Access | Core integrity fell below 50% 35789 | -1/Access | Destroyed B-99 Colossus 35810 | -1/Access | Destroyed 7 combat bots 35817 | -1/Access | Lost 6 parts (1p1n4u) 35826 | -1/Access | Discovered new exit (range 10) 35851 | -1/Access | Found Unknown Protection 35851 | -1/Access | Identified Hvy. Reflective Plating 35897 | -1/Access | Spotted Investigator 35900 | -1/Access | Destroyed Investigator 35914 | -1/Access | Spotted Executioner 35917 | -1/Access | Spotted Executioner 35930 | *** | Destroyed 0b10! Last Messages --------------- 35920_ Core Membrane filtered system corruption (1). 35920_ P-80 Master resets P-80 Master, system corruption cleaned. 35921_ Critical hit (Destroy). 35922_ Stasis bubble strength at 116. 35923_ Stasis bubble strength at 32. 35924_ Stasis bubble bursts. 35925_ Slug penetrates Sealed Barrier. 35925_ Slug penetrates Sealed Heavy Doors. 35925_ Slug penetrates Main Access Shell. 35927_ Scrap Engine modifies Particle-Quantum Reactor: Max Integrity +484 Renamed Quantum-Particle Reactor. 35927_ Critical hit (Burn: +18). 35928_ P-80 Master resets G-73 Enforcer, system corruption cleaned. 35929_ Penetrated by Slug. [Achievement: Payload Armed] Map ----- +----------------------------------------------------+ | ????????????# "=%= ! % %=%! #??????????# | | ??????????????????????#![**"![=[ "##??????????# | | ???????????????????##?#%[[ "=*%%= *##???????????# | | ???????????????????? ##[*![%!%*[*!" #???########## | | ????????????????????# #%=*="![%!* % #???# | | ????????????????????# #=*[ "!!!%]![ ##??# | | ?????????????????????=!%!/ %=!%!!![ "##?# | | ????????????????????? =*/= "!%!]!! # ### " | | ?????????????????????#"!%= =!!!]!!! ## ##""" | | ???????????????????###" "[!=%""#""## # """ | | ???????????????????# !### ## ###" " | | ???????????????????# #??##?? ### | | ???????????????????# #??????? ## | | ???????????????????#] ! !! #???????? # | | ???????????????????# %! !#?????????# ! ! | | ???????????????????#!! ! #?????????# !*% | | ???????????????????#!![ ! ############""!!!#"" | | ???????????????????# " # " " ] | | ???????????????????# ""### " "### | | ???????????????????#""" "???# " ##?? | | ???????????????????#"""" ""#?# " #??? | | ???????????????????# #?# " #??? | | ???????????????????# #?# # #??? | | ???????????????????# " ### # #??? | | ???????????????????# " "" ##% # #??? | | ???????????????????# ?" "@ ### + #??? | | ???????????????????# " ### """##### #??? | | ???????????????????# " " " # ####?# #??? | | ???????????????????# # # #?# #??? | | ???????????????????# # #?# #??? | | ???????????????????"""""""""""" #?? #??? | | ???????????????????#"" #?? #??? | | ???????????????????#"" # #?? #??? | | ???????????????????#"" #??? ???? | | ???????????????????#T #???????? | | ???????????????????#"" # #???????? | | ???????????????????# ### #???????? | | ??????????????????"" #?#"#+######???????? | | ????????????????? =[[ ? ??????????????? | | ????????????????? [ =%! ? ?????????????? | | ?????????????????!%="*"""######?#####????????????? | | ??????????????????[""#""#????????????????????????? | | ?????????????????? #?????????????????????????? | | ???????????????????? ??????????????????????????? | | ?????????????????????????????????????????????????? | | ?????????????????????????????????????????????????? | | ?????????????????????????????????????????????????? | | ?????????????????????????????????????????????????? | | ?????????????????????????????????????????????????? | | ?????????????????????????????????????????????????? | +----------------------------------------------------+ Best States ------------- Heat Dissipation 152 Coolant Potential 160 Energy Generation 105 Energy Capacity 1712 Matter Stores 300 Matter Capacity 300 Sight Range 16 Robot Scan Range 20 Terrain Scan Range 16 Terrain Scan Density 85 Jamming Range 22 Power Amplification 20 EM Shielding 4 Armor Coverage 1200 Resistance: KI 30 Resistance: TH 25 Point Defense Rating 240 Weapon Cycling 25 Evasion (%) 67 Targeting Accuracy 12 Recoil Reduction 5 Particle Charging 30 Kinecelleration 40 Salvage Targeting 1 Offensive Hacking 41 Authchip Count 1 Item Schematics ----------------- Cld. Impulse Thruster | -2/Quarantine | Archive Lrn. Phase Cannon | -2/Section 7 | Archive Prc. Matter Filter | -2/Section 7 | Archive Exp. Core Shielding | -2/Section 7 | Archive Enh. Coil Gun | -2/Section 7 | Archive Adv. Kinecellerator | -2/Section 7 | Archive Hvy. Tesla Rifle | -2/Section 7 | Archive Graviton Cannon | -2/Section 7 | Archive Ragnarok Missile Launcher | -2/Section 7 | Archive Adv. Plasma Rifle | -2/Section 7 | Archive Prc. Energy Filter | -2/Section 7 | Archive Gravity Neutralizer | -2/Section 7 | Archive Imp. Matter Neutralizer | -2/Section 7 | Archive Cld. Plasma Rifle | -2/Section 7 | Archive Adv. Gravity Neutralizer | -2/Section 7 | Archive Exp. Terrain Scanner | -2/Section 7 | Archive Cld. Q-thruster | -2/Section 7 | Archive Hvy. Wave Gun | -2/Section 7 | Archive Robot Schematics ------------------ T-07 Excavator | -2/Quarantine | Archive A-02 Transporter | -2/Quarantine | Archive G-73 Enforcer | -2/Section 7 | Archive K-01 Serf | -2/Section 7 | Archive E-15 Imp | -2/Section 7 | Archive R-06 Scavenger | -2/Section 7 | Archive C-65 Expert | -2/Section 7 | Archive Fabricated ------------ Exp. Thermal Generator | x1 | -3/Testing | Preloaded Repaired ---------- Lgt. Treads | 35% | -10/Materials Lgt. Angular Momentum Engine | 15% | -8/Storage Studied --------- None Alien Tech Used ----------------- Integrated Reactor Core Regenerator Core Reset Matrix Dimensional Node Initializer Core Membrane High-powered Transdimensional Reconstructor Integrity Redistributor Achievements -------------- IP Theft Left-hand Path Payload Armed Rampage Challenges ------------ None Game ------ Seed ShiftInterceptSpiker Manual? 0 Play Time 05:50:34 Cumulative 622.0 hours Start 2026.03.04 @ 13:10:23 End 2026.03.04 @ 20:10:19 Sessions 5 Manual Loads 0 Difficulty Rogue Special Mode None Game No. 348 Rogue 348 Adventurer 0 Explorer 0 Win Type 3 Total 24 Types 12/0/6/1/1/0/1/2/1/0 Lore% 91 Gallery% 85 Achievement% 74 Wizard Run 0 Options --------- Layout 1 ASCII 0 Keyboard 0 Movement Numpad Keybinds 0 Fullscreen 2 Font 24/Smallcaps Map View 50x40 Zoom Use 0% Tactical HUD 1 Map Filters NONE Filters NONE Steam 1 RUN: 6883ed72-73ec-4e7a-ab5a-8892a5c349f0